{"text_format":"1","workbook":"xlsx","n_sheets":34,"sheets":["MENU GENERAL","SOUS MENU ADMIN","SOUS MENU PDG","SOUS MENU CHEF EQ","SOUS MENU OPERATEUR","CHECKLIST","RETARD IMMO","DOSSIER LOG V2","Rech COND","BDD COND","Rech REMORQUE","BDD REMORQUE","MENU LIV HUNTSMAN","BL HSO OUDALLE","HSO OUDALLE","ZDGN HSO OUDALLE","BL XHS118 INFINEUM","XHS118 INFINEUM","ZDGN XHS118 INFINEUM","BL HSA118 INFINEUM","HSA118 INFINEUM","ZDGN HSA118 INFINEUM","BL HSA118 ENI","HSA118 ENI","ZDGN HSA118 ENI","BL AS305BD CHEVRON","AS305BD CHEVRON","ZDGN AS305BD CHEVRON","BL AS305BD ALKION","AS305BD ALKION","ZDGN AS305BD ALKION","BL HSA118 VISCOL","HSA118 VISCOL","ZDGN HSA118 VISCOL"],"not_rendered":{"charts":0,"images":29,"macros":1,"external_links":0,"defined_names":8,"comments":0,"pivot_tables":0},"unopened":[],"bounds":{"document_bytes":16777216,"sheet_cells":100000,"rows_first":2000,"rows_last":500,"rows_between":2000,"halvings":0,"cell_chars":16384,"cell_head_chars":4096},"cells_cut":0,"cells_raw":0,"read":"whole","date_system":"1900"}

{"sheet":"MENU GENERAL","index":0,"n_rows":0,"n_cols":0,"rows_kept":0,"cut":false,"hidden":false,"merged":[]}

{"sheet":"SOUS MENU ADMIN","index":1,"n_rows":0,"n_cols":0,"rows_kept":0,"cut":false,"hidden":false,"merged":[]}

{"sheet":"SOUS MENU PDG","index":2,"n_rows":0,"n_cols":0,"rows_kept":0,"cut":false,"hidden":false,"merged":[]}

{"sheet":"SOUS MENU CHEF EQ","index":3,"n_rows":0,"n_cols":0,"rows_kept":0,"cut":false,"hidden":false,"merged":[]}

{"sheet":"SOUS MENU OPERATEUR","index":4,"n_rows":0,"n_cols":0,"rows_kept":0,"cut":false,"hidden":false,"merged":[]}

{"sheet":"CHECKLIST","index":5,"n_rows":55,"n_cols":8,"rows_kept":55,"cut":false,"hidden":false,"merged":[[50,4,50,5],[41,1,41,2],[42,2,42,3],[54,0,54,1],[54,2,54,4],[49,2,51,3],[41,3,41,4],[42,0,42,1],[44,0,45,6],[46,0,47,6],[49,0,49,1],[49,4,49,5],[31,0,31,6],[32,0,32,3],[33,0,33,3],[39,0,39,2],[35,3,37,4],[24,0,24,3],[26,0,26,3],[28,0,28,3],[29,0,29,1],[30,0,30,3],[25,2,25,3],[27,2,27,3],[22,0,22,1],[22,2,22,3],[22,4,22,6],[23,0,23,1],[23,2,23,3],[23,4,23,6],[15,0,15,3],[17,0,17,3],[19,0,19,3],[21,0,21,6],[16,2,16,3],[18,2,18,3],[20,2,20,3],[10,0,10,6],[7,5,7,6],[8,5,8,6],[5,0,5,1],[6,0,6,1],[7,0,7,1],[8,0,8,1],[9,0,9,1],[5,3,5,4],[7,3,7,4],[8,3,9,4],[3,1,3,5],[4,0,4,1],[4,2,4,4],[4,5,4,6],[0,5,0,6],[1,5,1,6],[2,5,2,6],[0,2,0,3],[1,2,1,3],[13,0,13,6],[14,5,14,6],[14,3,14,4],[11,5,11,6],[12,5,12,6],[11,1,11,3],[12,0,12,1],[12,2,12,3]]}
[null,null,"LISTE DE CONTRÔLE DES VEHICULES",null,"N°de Delivery :",null,null,"test"]
[null,null,"(Matières premières / Produits finis / Déchets)",null,"N°de Shipment :"]
[null,null,null,null,"N°de Order :"]
[null,"PARTIE I - A compléter à l'arrivée du véhicule"]
["Raison du Transport",null,"Conditionnement du produit",null,null,"Présentation"]
[null,null,null,null,null,"Date :",{"$f":"TODAY()","v":"2019-10-23"}]
[null,null,"(citernes)"]
[null,null,null,"Produit précédent :",null,"Heure d'arrivée :"]
[null,null,null,null,null,"Heure de départ :"]
[]
["  Identification de la matière ( dangereuse ou non dangereuse )"]
["  Nom du produit :",null,null,null,"Provenance :"]
["  Numéro ONU (si applicable) :",null,null,null,"  Destination :"]
["  Identification et homologation du conducteur"]
["  Nom :","DOUFILS","Prénom :",{"$f":"IF($B$15=\"\",\"\",IF(VLOOKUP($B$15,'BDD COND'!$A$5:$H$9999,2,FALSE)=\"\",\"\",VLOOKUP($B$15,'BDD COND'!$A$5:$H$9999,2,FALSE)))","v":"ERIC"},null,"N° Badge :                   "]
["   > Attestation de formation de matière dangereuse __________________________________________"]
[null,"Date de validité :",{"$f":"IF($B$15=\"\",\"\",IF(VLOOKUP($B$15,'BDD COND'!$A$5:$H$9999,4,FALSE)=\"\",\"\",VLOOKUP($B$15,'BDD COND'!$A$5:$H$9999,4,FALSE)))","v":"2019-01-13"}]
["   > Permis de conduire __________________________________________________________________"]
[null,"Date de validité :",{"$f":"IF($B$15=\"\",\"\",IF(VLOOKUP($B$15,'BDD COND'!$A$5:$H$9999,3,FALSE)=\"\",\"\",VLOOKUP($B$15,'BDD COND'!$A$5:$H$9999,3,FALSE)))","v":"2023-07-25"}]
["   > Accueil sécurité _____________________________________________________________________"]
[null,"Date de validité :",{"$f":"IF($B$15=\"\",\"\",IF(VLOOKUP($B$15,'BDD COND'!$A$5:$H$9999,5,FALSE)=\"\",\"\",VLOOKUP($B$15,'BDD COND'!$A$5:$H$9999,5,FALSE)))","v":"2019-06-11"}]
["  Identification et homologation du véhicule"]
["TRACTEUR",null,"REMORQUE/CITERNE/CHASSIS",null,"CONTENEUR"]
[{"$f":"IF($B$15=\"\",\"\",VLOOKUP($B$15,'BDD COND'!$A$5:$G$9999,6,FALSE))","v":"DN961BS"},null,"DV206XG"]
["   > Tracteur ou Camion non articulé (Mines)  ________________________________________________"]
[null,"Date de validité :",{"$f":"IF($B$15=\"\",\"\",IF(VLOOKUP($B$15,'BDD COND'!$A$5:$H$9999,7,FALSE)=\"\",\"\",VLOOKUP($B$15,'BDD COND'!$A$5:$H$9999,7,FALSE)))","v":"2019-01-12"}]
["   > Citerne (A.D.R), Remorque (Mines), Châssis (Mines) _______________________________________"]
[null,"Date de validité :",{"$f":"IF(C24=\"\",\"\",IF(VLOOKUP(C24,'BDD REMORQUE'!$B$2:$D$1043,2,FALSE)=\"\",\"\",VLOOKUP(C24,'BDD REMORQUE'!$B$2:$D$1043,2,FALSE)))","v":"2018-09-20"}]
["   > Chargement produit fini dangereux / déchets : __________________________________________________________________"]
["Vérification compatibilité citerne (voir tableau affiché)"]
["   > Code citerne ou instruction citerne mobile et container pour vrac (déchets) :"]
["  Protocole de sécurité transport"]
["Remise du protocole de sécurité ______________________________________________"]
["Information sur les règles et les conduites à tenir  _______________________________"]
["           Nom de la personne ayant réalisé les contrôles ci-dessus :"]
[null,null,null,null,null,null,"Date :"]
[null,null,null,null,null,null,{"$f":"TODAY()","v":"2019-10-23"}]
[]
[]
["Engagement du chauffeur sur l'étiquetage et la signalisation"]
[]
["Je soussigné",{"$f":"B15","v":"DOUFILS"},null,{"$f":"D15","v":"ERIC"}]
["chauffeur de la société :",null,{"$f":"IF($B$15=\"\",\"\",IF(VLOOKUP($B$15,'BDD COND'!$A$5:$H$9999,8,FALSE)=\"\",\"\",VLOOKUP($B$15,'BDD COND'!$A$5:$H$9999,8,FALSE)))","v":"XPOLOGISTICS St Mihiel"}]
[]
["* Atteste avoir reçu le protocole de sécurité transport , relatif aux opérations de chargement et de déchargement de marchandises , et m'engage à respecter les consignes de sécurité en vigueur sur le site INNOSPEC , usine de Saint Mihiel , et à porter les équipements de protections individuels (casque,lunette de protection,chaussures de sécurité,tenue de travail à manches longues ) spécifiés dans le protocole de sécurité transport, qui m'a été remis en main propre, ou dans la consigne de sécurité transport."]
[]
["* Atteste qu'au départ de l'établissement, mon véhicule est convenablement équipé, signalisé et placardé elon l'arrété ADR et qu'en cas de retrait ou de modification des équipements ou de la signalisation, de chargement ultérieur incompatible ou de transport de voyageur non autorisé, ma responsabilité seule serait engagée."]
[]
[]
["Signature du Conducteur :",null,null,null,"Fait à Han sur Meuse"]
[null,null,null,null,{"$f":"TODAY()","v":"2019-10-23"}]
[]
[]
[]
["page 1 SUR 2",null,"STM-FORM-EHS-001 / 17.02.2018"]

{"sheet":"RETARD IMMO","index":6,"n_rows":17,"n_cols":13,"rows_kept":17,"cut":false,"hidden":false,"merged":[[0,3,0,8],[2,3,2,5],[2,10,2,11],[1,5,1,7]]}
[null,null,null,{"$f":"NOW()","v":"2019-10-23T23:29:15.310"}]
["                                                          CITERNES IMMOBILISEES  ","                                                         ",null,null,null,"RETARD CHARGEMENT & IMMO"]
["CITERNE","PRODUIT","Slot","DATE DE LIVRAISON",null,null,"COMMANDE","RAISON DE L’IMMO","CITERNE","PRODUIT","DATE DE DEBUT",null,"RAISON DE L’IMMO"]
["4097 TS 73","ASF/90",null,null,"2018-12-21","10H15",null,"MP","UTTU241779/8","SS25/A","2018-09-28","8H40","RETOUR CLIENT"]
["BY 173 KZ","A300",null,null,"2018-12-21","11H15",null,"MP","BW776XY","ACIDE SULFURIQUE","2018-12-26","6h00","STOCK"]
["BX 799 NB","SOUDE",null,null,"2018-12-19","21H00",null,"MP","BX627CC","ACIDE SULFURIQUE","2018-12-04","17h00","STOCK"]
["BY 049 KZ","A300",null,null,"2018-12-21","11H30",null,"MP"]
["EG 851 BL","ASF/90",null,null,"2018-12-19","14H30",null,"MP"]
["CQ 777 NE","ASF/90",null,null,"2018-12-20","15H15",null,"MP"]
["BX 391 CB","A300",null,null,"2018-12-20","18H25",null,"MP"]
["BW 121 XY","SOUDE",null,null,"2018-12-21","10H30",null,"MP"]
[null,null,null,null,null,null,null,"MP"]
[null,null,null,null,null,null,null,"MP"]
[null,null,null,null,null,null,null,"MP"]
[null,null,null,null,null,null,null,"MP"]
[null,null,null,null,null,null,null,"MP"]
[null,null,null,null,null,null,null,"MP"]

{"sheet":"DOSSIER LOG V2","index":7,"n_rows":0,"n_cols":0,"rows_kept":0,"cut":false,"hidden":false,"merged":[]}

{"sheet":"Rech COND","index":8,"n_rows":9,"n_cols":3,"rows_kept":9,"cut":false,"hidden":false,"merged":[]}
[null,null,"RECHERCHE D'UN CONDUCTEUR"]
[null,"NOM DU CONDUCTEUR","CUNY"]
[null,"PRÉNOM DU CONDUCTEUR",{"$f":"IF($C$2=\"\",\"\",VLOOKUP($C$2,'BDD COND'!$A$5:$G$9999,2,FALSE))","v":"DOMINIQUE"}]
[null,"VALIDITÉ PERMIS DE CONDUIRE",{"$f":"IF($C$2=\"\",\"\",IF(VLOOKUP($C$2,'BDD COND'!$A$5:$H$9999,3,FALSE)=\"\",\"\",VLOOKUP($C$2,'BDD COND'!$A$5:$H$9999,3,FALSE)))","v":"2020-04-18"}]
[null,"VALIDITÉ DU TITRE ADR",{"$f":"IF($C$2=\"\",\"\",IF(VLOOKUP($C$2,'BDD COND'!$A$5:$H$9999,4,FALSE)=\"\",\"\",VLOOKUP($C$2,'BDD COND'!$A$5:$H$9999,4,FALSE)))","v":"A DEMANDER"}]
[null,"VALIDITÉ DE L'ACCUEIL INNOSPEC",{"$f":"IF($C$2=\"\",\"\",IF(VLOOKUP($C$2,'BDD COND'!$A$5:$H$9999,5,FALSE)=\"\",\"\",VLOOKUP($C$2,'BDD COND'!$A$5:$H$9999,5,FALSE)))","v":"2019-04-09"}]
[null,"IMMATRICULATION TRACTEUR",{"$f":"IF($C$2=\"\",\"\",VLOOKUP($C$2,'BDD COND'!$A$5:$G$9999,6,FALSE))","v":"TX2038"}]
[null,"DATE DES MINES DU TRACTEUR",{"$f":"IF($C$2=\"\",\"\",IF(VLOOKUP($C$2,'BDD COND'!$A$5:$H$9999,7,FALSE)=\"\",\"\",VLOOKUP($C$2,'BDD COND'!$A$5:$H$9999,7,FALSE)))","v":"2018-10-02"}]
[null,"SOCIÉTÉ",{"$f":"IF($C$2=\"\",\"\",IF(VLOOKUP($C$2,'BDD COND'!$A$5:$H$9999,8,FALSE)=\"\",\"\",VLOOKUP($C$2,'BDD COND'!$A$5:$H$9999,8,FALSE)))","v":"TRACTLUX"}]

{"sheet":"BDD COND","index":9,"n_rows":117,"n_cols":8,"rows_kept":117,"cut":false,"hidden":false,"merged":[[0,0,0,1]]}
["RECHERCHE",null,null,"BASE DE DONNÉES CONDUCTEURS"]
[]
[]
["NOM DU CONDUCTEUR","PRÉNOM","VALIDITÉ PERMIS DE CONDUIRE","VALIDITÉ TITRE ADR","VALIDITÉ ACCUEIL INNOSPEC","IMMATRICULATION TRACTEUR","VALIDITÉ MINES TRACTEUR","SOCIÉTÉ"]
["ABDESSELEM","PASCAL","2019-04-12","2019-12-14","2018-12-04","DN391JJ","2019-01-05","XPOLOGISTICS St Mihiel"]
["AMAR","MOHAMED","2019-01-17","2020-12-18","2019-04-10","1BGO897","2018-05-30","TRAFUCO"]
["AMPULA","ROBERT","2022-07-28","2018-12-29","2019-07-02","NON ATTITRE",null,"XPOLOGISTICS Polska"]
["ANDRASAN","RAUL","2020-11-18","A DEMANDER","2019-03-23","WH45645","2018-06-09","DEN HARTOGH"]
["BEDACIER","JEAN NOEL","2018-08-29","A DEMANDER","2019-04-10","D0776","2018-09-27","STIC"]
["BIELAK","PIOTR","2019-08-23","2021-12-12","2019-04-09","WP71783","2018-09-20","BERTSCHI"]
["BIENDINE","BRUNO","2021-06-17","2019-02-13","2019-11-19","DE337XG","2019-04-11","XPOLOGISTICS St Mihiel"]
["BOILEAU","JEAN PIERRE","2018-08-02","PAS DE TITRE ADR","2019-04-03","3065VB73","2018-06-14","JACQUEMOZ"]
["BOURGUIGNON","SEBASTIEN","2019-02-27","2022-06-15","2019-02-09","EJ462FK","2019-01-05","MESSER"]
["BRICHE","CEDRIC","2021-12-08","PAS DE TITRE ADR","2019-11-09","EB448RW","2019-04-03","Goerich"]
["BUKHTA","OLEKSANDR","2047-09-27","2023-06-17","A FAIRE","NON ATTITRE",null,"TEMPERI"]
["BURTART","GERARD","2019-12-02","2019-07-19","2018-09-01","TX2161","2018-10-06","TRACTLUX"]
["CHARLIER","LAURENT","2022-11-18","A DEMANDER","2019-03-23","NON ATTITRE",null,"SODEL"]
["CHAUVET","JEAN CLAUDE","2019-10-13","2019-01-20","2019-06-28","DB632EN","2019-01-17","XPOLOGISTICS St Mihiel"]
["CIGLENEAN","MANUEL","ILLIMITÉ","A DEMANDER","2019-04-30","PNT30608","2018-09-26","DEN HARTOGH"]
["COELHO","JOSE","2021-01-07","2021-06-16","2019-05-02","DB141HM","2019-11-29","XPOLOGISTICS St Mihiel"]
["COLLIN","BERNARD","2020-08-26","A DEMANDER","2019-04-19","JD0775","2018-09-28","STIC"]
["COLMACHE","CHRISTIAN","2020-03-06","PAS DE TITRE ADR","2018-07-28","DP888EJ","2019-02-06","Goerich"]
["CUNY","DOMINIQUE","2020-04-18","A DEMANDER","2019-04-09","TX2038","2018-10-02","TRACTLUX"]
["CUPIAL","KRZYSZTOF","2023-03-09","A DEMANDER","2019-06-13","NON ATTITRE",null,"TEMPERI"]
["DAVIDSON","PETER","2022-01-17","A DEMANDER","2019-03-06","EV08MPV","2019-03-14","BAIRDS BROTHERS"]
["DELGEHIER","FRANCK","2022-06-24","2019-01-14","2019-06-04","DA990RA","2018-11-16","XPOLOGISTICS St Mihiel"]
["DELPAU","PATRICK","2019-08-22","PAS DE TITRE ADR","2018-11-07","DP475CL","A DEMANDER","Goerich"]
["DEMEYERE","FRANK","2021-06-03","PAS DE TITRE ADR","2019-04-20","1SBY894","2019-04-06","VAN DE MIEROP NV"]
["DOMAGALA","PRZEMEK","2021-02-28","2019-02-08","A DEMANDER","NON ATTITRE",null,"XPOLOGISTICS Polska"]
["DOUFILS","ERIC","2023-07-25","2019-01-13","2019-06-11","DN961BS","2019-01-12","XPOLOGISTICS St Mihiel"]
["DOXIN","KEVIN","2022-01-16","PAS DE TITRE ADR","2019-01-03","EN164XV","2018-07-03","Goerich"]
["DUFOUR","CYRIL","2020-05-27","PAS DE TITRE ADR","2019-04-20","EQ649WH","2018-09-29","LENOIR"]
["DUPPAL","PETR","ILLIMITÉ","2021-05-29","2019-04-30","TGX190","2018-12-16","HAANPAA"]
["DZIATKOWSKI","SLAWOMIR","2021-07-25","2019-11-04","A DEMANDER","NON ATTITRE",null,"XPOLOGISTICS Polska"]
["FIRUTA","ZBIGNIEW","2031-05-05","2023-03-31","A FAIRE","A DEMANDER","A DEMANDER","A DEMANDER"]
["FOLGOA","BERNARD","2019-05-16","2019-12-05","2019-05-02","A DEMANDER",null,"XPOLOGISTICS St Mihiel"]
["FRANCOIS","VINCENT","2022-04-28","2021-10-12","2019-06-13","DN935JE","2019-01-19","XPOLOGISTICS St Mihiel"]
["GAILLARD","JACQUES","2020-12-31","A DEMANDER","2019-06-04","EB507QF","2019-04-18","SODEL"]
["GASSON","HERVE","2019-08-26","A DEMANDER","2018-11-21","BM445AF","2019-02-21","SODEL"]
["GAWRYSZEWSKI","JAN","2019-06-28","2020-06-17","2019-01-09","NON ATTITRE",null,"XPOLOGISTICS Polska"]
["GIETZEN","FABRICE","2019-10-08","PAS DE TITRE ADR","2019-04-30","CL982AR","2019-03-28","TRANSALLIANCE"]
["GINIOT","PHILIPPE","2021-08-09","2019-11-14","2019-04-30","DN669SM","2019-01-29","XPOLOGISTICS St Mihiel"]
["GOBUT","ABDULLAH","2021-06-07","2021-06-01","2019-02-14","REHK1414","2019-04-30","HUBERT KLASENER"]
["GOLEBIEWSKI","SEBASTIAN","2023-07-24","2020-02-24","2018-06-16","NON ATTITRE",null,"XPOLOGISTICS Polska"]
["GRITS","JURI","ILLIMITÉ","A DEMANDER",null,"138BLT","2019-01-01","ELME TRANSPORTAS"]
["GRZESKOW","ARTUR","2022-07-06","2021-12-30","A FAIRE","NON ATTITRE",null,"XPOLOGISTICS Polska"]
["GUEBET","CHRISTOPHE","2021-01-27","PAS DE TITRE ADR","2018-11-28","EB448BW","2019-04-03","Goerich"]
["HAMEN","PATRICK","2018-09-07","PAS DE TITRE ADR","2019-01-02","A DEMANDER","A DEMANDER","Goerich"]
["HOEBEEK","MARK","2019-08-25","2020-05-22","2018-05-10","47BDV5","2019-03-10","HOYER"]
["JANIK","MARCIN","2022-05-21","2019-02-08","2018-08-02","NON ATTITRE",null,"XPOLOGISTICS Polska"]
["JEANNOT","ANTHONY","2019-03-24","A DEMANDER","2019-02-12","NON ATTITRE",null,"XPOLOGISTICS"]
["JOLY","PATRICE","2022-07-29","2021-03-01","2019-04-28","TX2043","2018-06-14","TRACTLUX"]
["KABORE","ASSANE","2018-10-06","A DEMANDER","2019-04-10","1HPV333","2018-09-18","JOST"]
["KACZOR","JOHANNES","2019-05-08","2019-04-29","2019-06-04","WUGSW79","2019-03-01","WILFSHOFER"]
["KLIS","PIOTR","2029-03-17","2019-09-21","2018-05-18","NON ATTITRE",null,"XPOLOGISTICS Polska"]
["KOLINKA","LECH","2020-05-13","2018-11-26","2018-09-22","NON ATTITRE",null,"XPOLOGISTICS Polska"]
["KORCZAK","PHILIPPE","2020-02-07","2022-06-07","2018-12-01","DN447SM","2019-01-30","XPOLOGISTICS St Mihiel"]
["KOSIK","JACEK","2021-05-22","A DEMANDER","2019-06-14","NON ATTITRE",null,"TEMPERI"]
["KUCHARSKI","JACEK","2022-02-02","2018-11-26","2017-11-05","NON ATTITRE",null,"XPOLOGISTICS Polska"]
["LANGARD","WILLIAM","2019-12-24","2019-02-02","2019-08-08","A DEMANDER","A DEMANDER","Goerich"]
["LAVIGNE","MYRIAM","2019-12-15","2020-01-07","2019-06-07","DP123QV","2019-03-07","XPOLOGISTICS St Mihiel"]
["LAZAREV","VADIM","ILLIMITÉ","2021-05-21","2019-04-09","138BLT","2019-01-23","XPOLOGISTICS Estonia"]
["LUSTIG","ANTOINE","2021-01-19","2022-05-05","2019-11-28","DN044EM","2019-01-03","XPOLOGISTICS St Mihiel"]
["LYON","PASCAL","2020-02-10","2020-09-12","2019-10-11","DX062BG","2019-10-22","XPOLOGISTICS St Mihiel"]
["MAARSEN","RUBEN","2021-12-13","2022-02-21","2019-03-27","67BDV5","2018-05-19","HOYER"]
["MARIN","SORIN","2018-06-12","2020-10-13","2019-04-20","WWL85390","2019-03-23","DEN HARTOGH"]
["MARLIERE","RICHARD","2021-06-18","2020-01-22","2019-04-09","DH642FY","2019-04-04","MGE"]
["MARTE","WHALTER","2018-05-02","2019-02-04","2019-04-30","8829HCJ","2019-03-24","PANALON"]
["MARTINEZ","ANTOINE","2020-02-12","2020-07-31","2018-06-20","A DEMANDER","A DEMANDER","XPOLOGISTICS St Mihiel"]
["MATACHE","CONSTANTIN","ILLIMITÉ","2020-10-23","2018-06-21","WH48781","2018-07-28","DEN HARTOGH"]
["MDERE","IKINA","2020-01-01","PAS DE TITRE ADR","2019-06-04","EE903HW","2019-05-29","XPOLOGISTICS"]
["MEHENNA","BRAHIM","2023-05-28","2023-10-06","2019-04-23","EL997ZL","2019-04-24","DEN HARTOGH"]
["MOUILLOT","FREDERIC","2021-03-15","2022-01-20","2019-09-25","DP758LJ","2019-02-24","XPOLOGISTICS St Mihiel"]
["MOZDZER","ANDREJ","2019-02-21","2018-09-12","2019-03-27","JTO089","2018-05-22","TITAN"]
["NAN","CRISTINEL","ILLIMITÉ","2020-01-16","2018-12-06","WGM23182","2018-09-11","DEN HARTOGH"]
["NATHER","ROMAN","2021-05-07","2019-01-24","2019-03-27","NON ATTITRE",null,"XPOLOGISTICS Polska"]
["NIMMESGERN","FRANK","2021-06-23","2020-12-09","2019-04-28","BMK3303","2018-11-22","KUBE & KUBENZ"]
["OOMS","GERRIT","2021-11-21","2021-10-24","2018-09-28","72BDV5","2019-05-02","HOYER"]
["OZDOBINSKI","MARIUSZ","2022-01-10","2022-02-28","2019-07-31","NON ATTITRE",null,"TEMPERI"]
["PARISOT","FRANCOIS","2019-08-27","2019-11-13","2019-10-01","EA566CX","2019-03-02","XPOLOGISTICS St Mihiel"]
["PATRIS","DIDIER","2021-01-10","A DEMANDER","2019-09-10","1PHB742","2018-07-13","DEN HARTOGH"]
["PERRIN","DENIS","2020-02-25","PAS DE TITRE ADR","2018-11-28","DQ690GL","2019-11-14","Goerich"]
["PERUZZI","DAVID","2021-02-06","PAS DE TITRE ADR","2019-04-18","EB929YY","2019-04-10","XPOLOGISTICS"]
["PINNA","GERARD","2020-09-17","2021-09-30","2019-07-18","ED220QZ","2018-06-29","XPOLOGISTICS St Mihiel"]
["PODSTAWA","ARTUR","2021-01-19","2021-12-30","2018-08-01","NON ATTITRE",null,"TEMPERI"]
["POTHIER","DAVID","2019-04-24","2019-10-15","2019-05-25","DP349CL","2019-01-23","Goerich"]
["QUIST","MATTHEUS","2018-10-28","2020-12-29","2019-04-30","82BGX5","2019-04-08","MINJDERS"]
["RACINE","JEAN PHILIPPE","2018-09-27","2021-01-27","2019-07-25","A DEMANDER",null,"XPOLOGISTICS St Mihiel"]
["RICHL","CEDRIC","2019-01-21","PAS DE TITRE ADR","2019-11-02","DL587SK","A DEMANDER","Goerich"]
["ROGERS","DARELL","2021-09-21","2021-10-20","2018-06-20",null,null,"XPOLOGISTICS St Mihiel"]
["ROTARIU","DANIEL","ILLIMITÉ","A DEMANDER","2019-07-11","AG52RVT","2018-10-20","CANIL"]
["ROUX","MARCEAU","2019-05-09","PAS DE TITRE ADR","2019-06-27","EJ041NA","2019-01-23","Goerich"]
["RUSE","ANDRE","2019-05-12","PAS DE TITRE ADR","2019-06-13","DS425RC","2019-04-03","Goerich"]
["SAUVESTRE","ARNAUD","2021-07-30","2022-07-02","2019-07-19","DB902HM","2019-12-10","XPOLOGISTICS St Mihiel"]
["SCHATZ","LUC","2019-06-30","2019-10-07","2019-07-24","BJ041NA","2019-01-06","Goerich"]
["SKURDELIS","RAIMONDAS","2019-08-22","2020-08-18","2019-01-24","KEE754","2019-01-23","ELME TRANSPORTAS"]
["SODOYER","PASCAL","2018-07-30","2021-10-07","2018-03-27","CS294NN","2018-08-17","SODEL"]
["SOUVAY","DENIS","2022-02-18","PAS DE TITRE ADR","2019-04-10","EF557SV","2018-10-09","XPOLOGISTICS"]
["SWIERCZYNA","ZYGMUNT","2020-04-02","2021-12-17","2019-04-10","WESRI811","2018-07-26","RINNEN"]
["SZELIGA","JACEK","2021-06-08","2020-12-31","2019-03-30","NON ATTITRE",null,"XPOLOGISTICS Polska"]
["TAMRABET","SALIM","2020-08-07","2022-07-22","2019-03-16","DZ202NL","2019-01-31","SITA DECTRA"]
["TENIERE","LUDOVIC","2020-02-07","2020-03-12","2019-06-05","DQ620FC","2019-03-07","SAMAT"]
["THUILLIER","JEAN LUC","2020-05-30","2019-04-21","2019-07-18","EA171CF","2019-02-20","XPOLOGISTICS St Mihiel"]
["TISSIER","FLORENT","2018-12-16","2019-02-25","2018-06-17","DV172LS","2018-08-09","SODEL"]
["TOUSSAINT","GUY","2019-06-30","2022-10-07","2018-12-11","DN853EL","2019-01-08","XPOLOGISTICS St Mihiel"]
["TSEBURANOV","IGOR","ILLIMITÉ","2022-05-08","2019-04-30","461MRB","2018-12-01","ELME TRANSPORTAS"]
["VAGNER","PASCAL","2022-09-30","2020-01-17","2019-06-13","DE714XG","2019-04-12","XPOLOGISTICS St Mihiel"]
["VILKAUSKAS","EGIDIJUS","2023-05-24","A DEMANDER","2019-03-26","DUDH5434","2018-11-26","DEN HARTOGH"]
["VINDIGAS","ALBERTAS","2019-08-12","2023-02-11","2019-04-30","KEE754","2019-01-23","ELME TRANSPORTAS"]
["VOICILAS","SIMION","2019-04-10","2019-06-22","2019-04-20","WH45404","2018-06-14","DEN HARTOGH"]
["WATTIAU","ALAIN","2022-07-21","2022-07-28","2019-07-17","DN765JG","2019-01-10","XPOLOGISTICS St Mihiel"]
["WILLIAMS","GARY","2022-11-20","PAS DE TITRE ADR","2019-06-27","DY273QD","2018-12-24","Goerich"]
["WOJCIECHOWSKI","KAMIL","2023-06-29","2021-01-24","2019-07-26","NON ATTITRE",null,"XPOLOGISTICS Polska"]
["WOJTYRA","PRZEMYSLAW","2021-09-07","2023-05-13","2019-06-13","NON ATTITRE",null,"XPOLOGISTICS Polska"]
["WROBEL","MARIUSZ","2021-06-09","2019-12-30","2018-06-17","NON ATTITRE",null,"XPOLOGISTICS Polska"]
["XARDEL","BERNARD","2022-10-11","PAS DE TITRE ADR","2019-06-24","EJ041NA","2019-01-23","Goerich"]
["YEVTUSHENKO","EDUARD","2043-01-14","2023-04-19","2019-07-07","461MRB","2018-12-06","ELME TRANSPORTAS"]

{"sheet":"Rech REMORQUE","index":10,"n_rows":13,"n_cols":3,"rows_kept":13,"cut":false,"hidden":false,"merged":[]}
[null,null,"RECHERCHE D'UNE REMORQUE & TRACTEUR"]
[null,"IMMATRICULATION","BZ016TC"]
[null,"DATE DES MINES",{"$f":"IF(C2=\"\",\"\",IF(VLOOKUP(C2,'BDD REMORQUE'!$B$2:$D$1043,2,FALSE)=\"\",\"\",VLOOKUP(C2,'BDD REMORQUE'!$B$2:$D$1043,2,FALSE)))","v":"2019-02-14"}]
[null,"CODE CITERNE / CAPACITÉ",{"$f":"IF(ISBLANK(C2),\"\",VLOOKUP($C$2,'BDD REMORQUE'!B:E,ROW(A3),FALSE))","v":"L4BH - MONOCUVE - 32479L"}]
[null,"SOCIÉTÉ",{"$f":"IF(ISBLANK(C2),\"\",VLOOKUP($C$2,'BDD REMORQUE'!B:E,ROW(A4),FALSE))","v":"XPOLogistics SAINT MIHIEL"}]
[null,"LÉGENDE"]
[null,"MINE DES REMORQUES","POUR AFFICHER UNE IMMATRICULATION DE REMORQUE , CLIQUER SUR RECHERCHER \"IMMATRICULATION\" "]
[null,"VALIDE"]
[null,"RESTE MOINS DE 60 JOURS","ICI SONT LISTÉS TOUTES CITERNES XPOLogistics , BM Chimie , Samat Etc... VENANT SUR SITE INNOSPEC EN RÉGULIER "]
[null,"PERIMÉE"]
[null,null,"ICI SONT LISTÉS TOUTES REMORQUES BACHÉS VENANT SUR SITE INNOSPEC EN RÉGULIER"]
[]
[null,null,"SI UNE DATE DES MINES EST PÉRIMÉE , NOTER LA NOUVELLE DATE ET EN INFORMER L'ADMINISTRATEUR "]

{"sheet":"BDD REMORQUE","index":11,"n_rows":433,"n_cols":5,"rows_kept":433,"cut":false,"hidden":false,"merged":[]}
[null,"IMMATRICULATION","DATE DES MINES","CODE CITERNE / CAPACITÉ","SOCIÉTÉ"]
[null,"1QEC514","2018-11-14","REMORQUE SPECIFIQUE CHARBON ACTIF","DESOTEC"]
[null,"2277TS73","2019-01-09","L4BH - MONOCUVE - 34500L","BM CHIMIE"]
[null,"9413VR73","2019-02-15","L4BH - MONOCUVE - CAPACITÉ NC","BM CHIMIE"]
[null,"AA140JB",null,null,"XPOLogistics SANDOUVILLE"]
[null,"AA726ZR",null,null,"XPOLogistics SANDOUVILLE"]
[null,"AB269VN",null,null,"XPOLogistics SANDOUVILLE"]
[null,"AB324KK",null,null,"XPOLogistics SANDOUVILLE"]
[null,"AC160WW",null,null,"XPOLogistics SANDOUVILLE"]
[null,"AC603YW",null,null,"XPOLogistics SANDOUVILLE"]
[null,"AD102SV",null,null,"XPOLogistics SANDOUVILLE"]
[null,"AG246ZY",null,null,"XPOLogistics SEREZIN"]
[null,"AG451MD",null,null,"XPOLogistics SANDOUVILLE"]
[null,"AH027LK",null,null,"XPOLogistics SANDOUVILLE"]
[null,"AH242QK",null,null,"XPOLogistics SANDOUVILLE"]
[null,"AJ628GM",null,null,"XPOLogistics SANDOUVILLE"]
[null,"AJ744SE",null,null,"XPOLogistics SANDOUVILLE"]
[null,"AK288CQ",null,null,"XPOLogistics SANDOUVILLE"]
[null,"AL924WN",null,null,"XPOLogistics SEREZIN"]
[null,"AT140VQ",null,null,"XPOLogistics SEREZIN"]
[null,"AT183VQ",null,null,"XPOLogistics SEREZIN"]
[null,"AT218VQ","2019-06-18","L4BH - MONOCUVE - 37500L","XPOLogistics SEREZIN"]
[null,"AT245VQ",null,null,"XPOLogistics SEREZIN"]
[null,"AY669VG",null,null,"XPOLogistics SAINT MIHIEL"]
[null,"BA507NW","2018-10-31","L4BH - MONOCUVE - CAPACITÉ NC","XPOLogistics SEREZIN"]
[null,"BB664GR",null,null,"XPOLogistics SAINT MIHIEL"]
[null,"BE102AS",null,null,"XPOLogistics SEREZIN"]
[null,"BE135AS",null,null,"XPOLogistics SEREZIN"]
[null,"BK273XW",null,null,"XPOLogistics SANDOUVILLE"]
[null,"BK338XW",null,null,"XPOLogistics SANDOUVILLE"]
[null,"BMK3399","2019-03-28","CHASSIS ","KUBE & KUBENZ"]
[null,"BN301MJ",null,null,"XPOLogistics SANDOUVILLE"]
[null,"BR302WH",null,null,"XPOLogistics SANDOUVILLE"]
[null,"BT53","2019-04-12","L4BH - 3 CUVES - 11500L/7000L/11500L","BAIRDS BROTHERS"]
[null,"BV011ZB",null,null,"XPOLogistics SEREZIN"]
[null,"BV179YS",null,null,"XPOLogistics SEREZIN"]
[null,"BV197ZB","2019-03-07","L4BH - 3 CUVES - 7490L/22322L/7381L","XPOLogistics SEREZIN"]
[null,"BV236YT",null,null,"XPOLogistics SEREZIN"]
[null,"BV344YV",null,null,"XPOLogistics SEREZIN"]
[null,"BV361XG","2019-02-28","L4BH - 3 CUVES - 7462L/22471L/7402L","XPOLogistics SEREZIN"]
[null,"BV392ZD",null,null,"XPOLogistics SEREZIN"]
[null,"BV404XJ",null,null,"XPOLogistics SEREZIN"]
[null,"BV550YW",null,null,"XPOLogistics SEREZIN"]
[null,"BV641ZC","2018-07-06","L4BH - 3 CUVES - 7500L/22408L/7369L","XPOLogistics SEREZIN"]
[null,"BV698ZF",null,null,"XPOLogistics SEREZIN"]
[null,"BV702ZB","2018-10-03","L4BH - 3 CUVES - 7493L/22331L/7380L","XPOLogistics SEREZIN"]
[null,"BV729YV",null,null,"XPOLogistics SEREZIN"]
[null,"BV783ZH","2019-02-22","L4BH - MONOCUVE - 32550L","XPOLogistics SAINT MIHIEL"]
[null,"BV814XG",null,null,"XPOLogistics SEREZIN"]
[null,"BV865YS",null,null,"XPOLogistics SEREZIN"]
[null,"BV901YS",null,null,"XPOLogistics SEREZIN"]
[null,"BV997XH",null,null,"XPOLogistics SANDOUVILLE"]
[null,"BW003NA",null,null,"XPOLogistics SANDOUVILLE"]
[null,"BW010LT","2018-04-16","L4BH - MONOCUVE - 32644L","XPOLogistics SEREZIN"]
[null,"BW026ME",null,null,"XPOLogistics SEREZIN"]
[null,"BW032NF","2019-04-06","L10BH - MONOCUVE - 22438L","XPOLogistics SAINT MIHIEL"]
[null,"BW073NE","2019-07-24","L4BH - MONOCUVE - 33539L","XPOLogistics SAINT MIHIEL"]
[null,"BW121XY","2019-03-29","L4BH - MONOCUVE - 32447L","XPOLogistics SAINT MIHIEL"]
[null,"BW171NB","2019-07-24","L4BH - MONOCUVE - 33608L","XPOLogistics SAINT MIHIEL"]
[null,"BW176EJ",null,null,"XPOLogistics SEREZIN"]
[null,"BW184MF","2018-07-04","L4BH - MONOCUVE - 32670L","XPOLogistics SEREZIN"]
[null,"BW250RP",null,null,"XPOLogistics SEREZIN"]
[null,"BW281YB",null,null,"XPOLogistics SANDOUVILLE"]
[null,"BW302RR",null,null,"XPOLogistics SANDOUVILLE"]
[null,"BW308NP","2018-04-21","L10BH -MONOCUVE - 22480L","XPOLogistics SAINT MIHIEL"]
[null,"BW313XZ",null,null,"XPOLogistics SEREZIN"]
[null,"BW343XY","2019-01-03","L4BH - MONOCUVE - 32550L","XPOLogistics SEREZIN"]
[null,"BW359RM",null,null,"XPOLogistics SEREZIN"]
[null,"BW367NF","2019-02-21","L4BH - MONOCUVE - 32479L","XPOLogistics SAINT MIHIEL"]
[null,"BW415AC",null,null,"XPOLogistics SEREZIN"]
[null,"BW429RN",null,null,"XPOLogistics SANDOUVILLE"]
[null,"BW446TY",null,null,"XPOLogistics SEREZIN"]
[null,"BW463LS",null,null,"XPOLogistics SANDOUVILLE"]
[null,"BW481RT",null,null,"XPOLogistics SEREZIN"]
[null,"BW503XV","2018-11-07","L4BH - 3 CUVES - 7495L/22398L/7444L","XPOLogistics SEREZIN"]
[null,"BW535NE","2019-03-07","L4BH - MONOCUVE - 32550L","XPOLogistics SAINT MIHIEL"]
[null,"BW596EJ",null,null,"XPOLogistics SEREZIN"]
[null,"BW615RC",null,null,"XPOLogistics SANDOUVILLE"]
[null,"BW624MH",null,null,"XPOLogistics SEREZIN"]
[null,"BW635ND","2019-03-13","L4BH - MONOCUVE - 32464L","XPOLogistics SAINT MIHIEL"]
[null,"BW646XW",null,null,"XPOLogistics SANDOUVILLE"]
[null,"BW647VJ",null,null,"XPOLogistics SEREZIN"]
[null,"BW667YA",null,null,"XPOLogistics SANDOUVILLE"]
[null,"BW676AC",null,null,"XPOLogistics SEREZIN"]
[null,"BW692NB","2019-09-16","L4BH - MONOCUVE - 33608L","XPOLogistics SAINT MIHIEL"]
[null,"BW702RP",null,null,"XPOLogistics SEREZIN"]
[null,"BW705NF","2019-01-29","L4BH - MONOCUVE - 32550L","XPOLogistics SAINT MIHIEL"]
[null,"BW757TX","2018-07-06","L4BH - MONOCUVE - 32445L","XPOLogistics SEREZIN"]
[null,"BW776XY","2019-11-22","L4BH - MONOCUVE - 32550L","XPOLogistics SAINT MIHIEL"]
[null,"BW810RQ",null,null,"XPOLogistics SEREZIN"]
[null,"BW838RN",null,null,"XPOLogistics SEREZIN"]
[null,"BW847MG",null,null,"XPOLogistics SEREZIN"]
[null,"BW862RC",null,null,"XPOLogistics SEREZIN"]
[null,"BW862XX",null,null,"XPOLogistics SANDOUVILLE"]
[null,"BW882NC","2019-02-01","L4BH - MONOCUVE - 32520L","XPOLogistics SAINT MIHIEL"]
[null,"BW888MB",null,null,"XPOLogistics SEREZIN"]
[null,"BW898MF",null,null,"XPOLogistics SEREZIN"]
[null,"BW910PB",null,null,"XPOLogistics SEREZIN"]
[null,"BW915RR",null,null,"XPOLogistics SANDOUVILLE"]
[null,"BW939VM",null,null,"XPOLogistics SEREZIN"]
[null,"BW950EJ",null,null,"XPOLogistics SEREZIN"]
[null,"BW951XV",null,null,"XPOLogistics SEREZIN"]
[null,"BW955XW",null,null,"XPOLogistics SANDOUVILLE"]
[null,"BX028CD","2019-03-14","L4BH - MONOCUVE - 32486L","XPOLogistics SAINT MIHIEL"]
[null,"BX072DS",null,null,"XPOLogistics SANDOUVILLE"]
[null,"BX085PD",null,null,"XPOLogistics SANDOUVILLE"]
[null,"BX090PF",null,null,"XPOLogistics SANDOUVILLE"]
[null,"BX158NB","2019-06-05","L4BH - 3 CUVES - 12250L/24750L/12250L","XPOLogistics SAINT MIHIEL"]
[null,"BX203DQ",null,null,"XPOLogistics SEREZIN"]
[null,"BX223DL",null,null,"XPOLogistics SANDOUVILLE"]
[null,"BX247PC",null,null,"XPOLogistics SANDOUVILLE"]
[null,"BX281NY",null,null,"XPOLogistics SANDOUVILLE"]
[null,"BX281QJ",null,null,"XPOLogistics SANDOUVILLE"]
[null,"BX282RB",null,null,"XPOLogistics SANDOUVILLE"]
[null,"BX284PC",null,null,"XPOLogistics SANDOUVILLE"]
[null,"BX314DN",null,null,"XPOLogistics SANDOUVILLE"]
[null,"BX327CK",null,null,"XPOLogistics SEREZIN"]
[null,"BX381PF",null,null,"XPOLogistics SANDOUVILLE"]
[null,"BX391CB","2019-03-13","L4BH - MONOCUVE - 32451L","XPOLogistics SAINT MIHIEL"]
[null,"BX439CC","2018-10-04","L4BH - MONOCUVE - 32451L","XPOLogistics SAINT MIHIEL"]
[null,"BX516ZP",null,null,"XPOLogistics SANDOUVILLE"]
[null,"BX530RC",null,null,"XPOLogistics SANDOUVILLE"]
[null,"BX560ZP",null,null,"XPOLogistics SANDOUVILLE"]
[null,"BX611CB","2019-01-19","L4BH - MONOCUVE - 32380L","XPOLogistics SAINT MIHIEL"]
[null,"BX617RB",null,null,"XPOLogistics SANDOUVILLE"]
[null,"BX627CC","2018-10-03","L4BH - MONOCUVE - 32550L","XPOLogistics SAINT MIHIEL"]
[null,"BX651ZQ",null,null,"XPOLogistics SANDOUVILLE"]
[null,"BX658DM",null,null,"XPOLogistics SANDOUVILLE"]
[null,"BX669JV",null,null,"XPOLogistics SANDOUVILLE"]
[null,"BX679DE",null,null,"XPOLogistics SANDOUVILLE"]
[null,"BX720JV",null,null,"XPOLogistics SANDOUVILLE"]
[null,"BX767CC","2019-03-20","L4BH - MONOCUVE - 32550L","XPOLogistics SAINT MIHIEL"]
[null,"BX799NB","2019-07-17","L4BH - MONOCUVE - 33597L","XPOLogistics SAINT MIHIEL"]
[null,"BX805CL","2019-02-21","L4BH - 3 CUVES - 7463L/25193L/7455L","XPOLogistics SEREZIN"]
[null,"BX843QY","2018-03-27","L4BH - 3 CUVES - 7484L/25146L/7455L","XPOLogistics SANDOUVILLE"]
[null,"BX991CK",null,null,"XPOLogistics SEREZIN"]
[null,"BY001RN",null,null,"XPOLogistics SAINT MIHIEL"]
[null,"BY038MZ","2019-03-01","L4BH - MONOCUVE - 32476L","XPOLogistics SAINT MIHIEL"]
[null,"BY049KZ","2019-03-16","L4BH - MONOCUVE - 32434L","XPOLogistics SAINT MIHIEL"]
[null,"BY091MZ","2019-01-10","L4BH - MONOCUVE - 32410L","XPOLogistics SAINT MIHIEL"]
[null,"BY097LA","2019-01-08","L4BH - MONOCUVE - 32437L","XPOLogistics SAINT MIHIEL"]
[null,"BY134MZ","2018-09-25","L4BH - MONOCUVE - 33512L","XPOLogistics SEREZIN"]
[null,"BY169MZ","2019-02-13","L4BH - MONOCUVE - 32498L","XPOLogistics SAINT MIHIEL"]
[null,"BY173KZ","2019-03-06","L4BH - MONOCUVE - 32521L","XPOLogistics SAINT MIHIEL"]
[null,"BY247LA",null,null,"XPOLogistics SAINT MIHIEL"]
[null,"BY372LA","2019-03-12","L4BH - MONOCUVE - 32441L","XPOLogistics SAINT MIHIEL"]
[null,"BY394KZ","2019-01-26","L4BH - MONOCUVE - 32419L","XPOLogistics SAINT MIHIEL"]
[null,"BY488KZ","2019-05-02","L4BH - 3 CUVES - 12572L/24866L/12370L","XPOLogistics SAINT MIHIEL"]
[null,"BY507LA",null,null,"XPOLogistics SAINT MIHIEL"]
[null,"BY553MY","2019-01-11","L4BH - MONOCUVE - 32362L","XPOLogistics SAINT MIHIEL"]
[null,"BY594KZ","2018-12-12","L4BH - MONOCUVE - 32481L","XPOLogistics SAINT MIHIEL"]
[null,"BY599WD",null,null,"XPOLogistics SAINT MIHIEL"]
[null,"BY608MY","2019-03-15","L4BH - MONOCUVE - 32479L","XPOLogistics SAINT MIHIEL"]
[null,"BY668HM",null,null,"XPOLogistics SANDOUVILLE"]
[null,"BY684MY","2018-12-06","L4BH - MONOCUVE - 32435L","XPOLogistics SAINT MIHIEL"]
[null,"BY701KZ","2019-10-14","L4BH - MONOCUVE - 32453L","XPOLogistics SAINT MIHIEL"]
[null,"BY710RV",null,null,"XPOLogistics SANDOUVILLE"]
[null,"BY737MY","2019-02-08","L4BH - MONOCUVE - 32426L","XPOLogistics SAINT MIHIEL"]
[null,"BY806MY","2019-02-12","L4BH - MONOCUVE - 32537L","XPOLogistics SAINT MIHIEL"]
[null,"BY935MY","2019-02-21","L4BH - MONOCUVE - 32497L","XPOLogistics SAINT MIHIEL"]
[null,"BY979KZ","2019-01-19","L4BH - MONOCUVE - 32550L","XPOLogistics SAINT MIHIEL"]
[null,"BZ002TC","2019-05-29","L4BH - MONOCUVE - 32550L","XPOLogistics SAINT MIHIEL"]
[null,"BZ010TC","2019-03-01","L4BH - MONOCUVE - 32432L","XPOLogistics SAINT MIHIEL"]
[null,"BZ011TC","2019-01-15","L4BH - MONOCUVE - 32514L","XPOLogistics SAINT MIHIEL"]
[null,"BZ016TC","2019-02-14","L4BH - MONOCUVE - 32479L","XPOLogistics SAINT MIHIEL"]
[null,"BZ253BS",null,null,"XPOLogistics SANDOUVILLE"]
[null,"BZ358PR",null,null,"XPOLogistics SANDOUVILLE"]
[null,"BZ375PR",null,null,"XPOLogistics SANDOUVILLE"]
[null,"BZ624CY","2019-01-05","CITERNE GAZ - AZOTE","MESSER"]
[null,"BZ724WT",null,null,"XPOLogistics SAINT MIHIEL"]
[null,"CA013HC",null,null,"XPOLogistics SAINT MIHIEL"]
[null,"CA120LT",null,null,"XPOLogistics SAINT MIHIEL"]
[null,"CA674HA",null,null,"XPOLogistics SAINT MIHIEL"]
[null,"CA783RE",null,null,"XPOLogistics SAINT MIHIEL"]
[null,"CB986GP",null,null,"XPOLogistics SAINT MIHIEL"]
[null,"CE247RR","2019-04-09","INGU 127 036 / 9 - MONOCUVE","XPOLogistics SAINT MIHIEL"]
[null,"CL096PB","2018-10-05","REMORQUE BACHEE","SODEL"]
[null,"CM991XA","2018-08-11","L4BH - MONOCUVE - CAPACITÉ NC","MGE"]
[null,"CQ079MF",null,null,"XPOLogistics SANDOUVILLE"]
[null,"CQ951ME",null,null,"XPOLogistics SANDOUVILLE"]
[null,"CS141KZ",null,null,"XPOLogistics SANDOUVILLE"]
[null,"CS184ZT",null,null,"XPOLogistics SANDOUVILLE"]
[null,"CS567XC",null,null,"XPOLogistics SANDOUVILLE"]
[null,"CS870ZR",null,null,"XPOLogistics SANDOUVILLE"]
[null,"CS988XC",null,null,"XPOLogistics SANDOUVILLE"]
[null,"CV423SC",null,null,"XPOLogistics SANDOUVILLE"]
[null,"CV485JM",null,null,"XPOLogistics SANDOUVILLE"]
[null,"CY784FP",null,null,"XPOLogistics SANDOUVILLE"]
[null,"CY810FP",null,null,"XPOLogistics SANDOUVILLE"]
[null,"CY850FP",null,null,"XPOLogistics SANDOUVILLE"]
[null,"CY859FP",null,null,"XPOLogistics SANDOUVILLE"]
[null,"CZ044VT",null,null,"XPOLogistics SANDOUVILLE"]
[null,"CZ358GX","2018-10-19","REMORQUE BACHEE","JACQUEMOZ"]
[null,"CZ448RX",null,null,"XPOLogistics SANDOUVILLE"]
[null,"CZ639NY",null,null,"XPOLogistics SANDOUVILLE"]
[null,"CZ750VT",null,null,"XPOLogistics SANDOUVILLE"]
[null,"CZ753YD","2018-10-23","INGU 127 022 / 4 - MONOCUVE","XPOLogistics SAINT MIHIEL"]
[null,"CZ931YD","2018-10-16","INGU 127 030 / 6 - MONOCUVE","XPOLogistics SAINT MIHIEL"]
[null,"DA083RB",null,null,"XPOLogistics SAINT MIHIEL"]
[null,"DA196KA",null,null,"XPOLogistics SANDOUVILLE"]
[null,"DA987CT",null,null,"XPOLogistics SEREZIN"]
[null,"DA987QY",null,null,"XPOLogistics SEREZIN"]
[null,"DA990RA",null,null,"XPOLogistics SAINT MIHIEL"]
[null,"DB053EN",null,null,"XPOLogistics SAINT MIHIEL"]
[null,"DB141HM",null,null,"XPOLogistics SAINT MIHIEL"]
[null,"DB384HM",null,null,"XPOLogistics SAINT MIHIEL"]
[null,"DB393EN",null,null,"XPOLogistics SEREZIN"]
[null,"DB632EN",null,null,"XPOLogistics SEREZIN"]
[null,"DB902HM",null,null,"XPOLogistics SAINT MIHIEL"]
[null,"DC122GW",null,null,"XPOLogistics SAINT MIHIEL"]
[null,"DC356QH","2018-12-29","REMORQUE BACHEE","LENOIR"]
[null,"DC784CQ",null,null,"XPOLogistics SEREZIN"]
[null,"DC793XZ",null,null,"XPOLogistics SANDOUVILLE"]
[null,"DD245ZA",null,null,"XPOLogistics SANDOUVILLE"]
[null,"DD344YY",null,null,"XPOLogistics SANDOUVILLE"]
[null,"DD473CP",null,null,"XPOLogistics SANDOUVILLE"]
[null,"DD606CP",null,null,"XPOLogistics SANDOUVILLE"]
[null,"DE107XG",null,null,"XPOLogistics SEREZIN"]
[null,"DE224XG",null,null,"XPOLogistics SEREZIN"]
[null,"DE337XG",null,null,"XPOLogistics SAINT MIHIEL"]
[null,"DE560PF",null,null,"XPOLogistics SANDOUVILLE"]
[null,"DE565XG",null,null,"XPOLogistics SAINT MIHIEL"]
[null,"DE676XF",null,null,"XPOLogistics SANDOUVILLE"]
[null,"DE684XF",null,null,"XPOLogistics SANDOUVILLE"]
[null,"DE690XF",null,null,"XPOLogistics SEREZIN"]
[null,"DE714XG",null,null,"XPOLogistics SAINT MIHIEL"]
[null,"DE957MM",null,null,"XPOLogistics SEREZIN"]
[null,"DG684MH",null,null,"XPOLogistics SANDOUVILLE"]
[null,"DH052FA","2019-07-18","L4BH - MONOCUVE - 40950L","XPOLogistics SEREZIN"]
[null,"DH053VB",null,null,"XPOLogistics SANDOUVILLE"]
[null,"DH112PG",null,null,"XPOLogistics SEREZIN"]
[null,"DH207VB",null,null,"XPOLogistics SEREZIN"]
[null,"DH257PG",null,null,"XPOLogistics SEREZIN"]
[null,"DH351VB",null,null,"XPOLogistics SEREZIN"]
[null,"DH562EZ","2019-06-26","L4BH - MONOCUVE - 40950L","XPOLogistics SEREZIN"]
[null,"DK055LW",null,null,"XPOLogistics SEREZIN"]
[null,"DK628LV","2018-10-05","L4BH - MONOCUVE - 40858L","XPOLogistics SEREZIN"]
[null,"DK869LV","2018-10-10","L4BH - MONOCUVE - 40950L","XPOLogistics SEREZIN"]
[null,"DN044EM",null,null,"XPOLogistics SAINT MIHIEL"]
[null,"DN391JJ",null,null,"XPOLogistics SAINT MIHIEL"]
[null,"DN447SM",null,null,"XPOLogistics SAINT MIHIEL"]
[null,"DN509EL",null,null,"XPOLogistics SAINT MIHIEL"]
[null,"DN669SM",null,null,"XPOLogistics SAINT MIHIEL"]
[null,"DN765JG",null,null,"XPOLogistics SAINT MIHIEL"]
[null,"DN853EL",null,null,"XPOLogistics SAINT MIHIEL"]
[null,"DN935JE",null,null,"XPOLogistics SAINT MIHIEL"]
[null,"DN961BS",null,null,"XPOLogistics SAINT MIHIEL"]
[null,"DP123QV",null,null,"XPOLogistics SAINT MIHIEL"]
[null,"DP758LJ",null,null,"XPOLogistics SAINT MIHIEL"]
[null,"DQ468WW","2019-04-19","XPOU 140 179/5 - MONOCUVE","XPOLogistics ST MIHIEL"]
[null,"DR301VK","2019-05-11","REMORQUE BACHEE","SODEL"]
[null,"DS105AS",null,null,"XPOLogistics SANDOUVILLE"]
[null,"DS340GA",null,null,"XPOLogistics SANDOUVILLE"]
[null,"DS701AS",null,null,"XPOLogistics SANDOUVILLE"]
[null,"DT245EX","2019-04-11","REMORQUE BENNE DECTRA","SITA DECTRA"]
[null,"DT332GG",null,null,"XPOLogistics SEREZIN"]
[null,"DT564GG",null,null,"XPOLogistics SEREZIN"]
[null,"DV050XN","2019-09-20","L4BH - MONOCUVE - 37247L","XPOLogistics SAINT MIHIEL"]
[null,"DV076KQ",null,null,"XPOLogistics SANDOUVILLE"]
[null,"DV155NF",null,null,"XPOLogistics SANDOUVILLE"]
[null,"DV206XG","2018-09-20","L4BH - MONOCUVE - 37368L","XPOLogistics SEREZIN"]
[null,"DV478XG",null,null,"XPOLogistics SANDOUVILLE"]
[null,"DV775XM","2019-09-16","L4BH - MONOCUVE - 37500L","XPOLogistics SAINT MIHIEL"]
[null,"DW469HN","2019-10-03","L4BH - 3 CUVES - 7489L/29858L/7490L","XPOLogistics SAINT MIHIEL"]
[null,"DW576HM","2018-10-02","L4BH - MONOCUVE - 37355L","XPOLogistics SANDOUVILLE"]
[null,"DW988HM","2019-09-26","L4BH - 3 CUVES - 7440L/29827L/7488L","XPOLogistics SAINT MIHIEL"]
[null,"DX062BG",null,null,"XPOLogistics SEREZIN"]
[null,"DX113YF",null,null,"XPOLogistics SEREZIN"]
[null,"DX405BG",null,null,"XPOLogistics SANDOUVILLE"]
[null,"DX563KE","2019-04-20","XPOU 140 166 / 6 - MONOCUVE ","XPOLogistics ST MIHIEL"]
[null,"DY697LC",null,null,"XPOLogistics SEREZIN"]
[null,"DY717LC","2019-01-18","XPOU 140 150 / 0 - MONOCUVE ","XPOLogistics SEREZIN"]
[null,"DY729LC",null,null,"XPOLogistics SEREZIN"]
[null,"DY757LC",null,null,"XPOLogistics SEREZIN"]
[null,"DZ076CJ",null,null,"XPOLogistics SEREZIN"]
[null,"DZ352ET","2019-01-22","INGU 127 037 / 4 - MONOCUVE","XPOLogistics SAINT MIHIEL"]
[null,"EA171CF",null,null,"XPOLogistics SEREZIN"]
[null,"EA200KF",null,null,"XPOLogistics SANDOUVILLE"]
[null,"EA270KE",null,null,"XPOLogistics SANDOUVILLE"]
[null,"EA316BA","2019-01-29","L4BH - MONOCUVE - SOUFFRE LIQUIDE","SAMAT"]
[null,"EA317KF",null,null,"XPOLogistics SEREZIN"]
[null,"EA343CF",null,null,"XPOLogistics SEREZIN"]
[null,"EA442KF",null,null,"XPOLogistics SANDOUVILLE"]
[null,"EA452KY",null,null,"XPOLogistics SEREZIN"]
[null,"EA566CX",null,null,"XPOLogistics SAINT MIHIEL"]
[null,"EA598CF",null,null,"XPOLogistics SANDOUVILLE"]
[null,"EA607KY",null,null,"XPOLogistics SEREZIN"]
[null,"EA635CD",null,null,"XPOLogistics SANDOUVILLE"]
[null,"EA704CF",null,null,"XPOLogistics SEREZIN"]
[null,"EA738KY",null,null,"XPOLogistics SEREZIN"]
[null,"EA994KD",null,null,"XPOLogistics SEREZIN"]
[null,"EB158YY","2019-04-10","REMORQUE BACHEE","XPOLogistics "]
[null,"EB336WZ",null,null,"XPOLogistics SANDOUVILLE"]
[null,"EB607YZ","2018-05-10","REMORQUE BACHEE","SODEL"]
[null,"EB922HH",null,null,"XPOLogistics SEREZIN"]
[null,"EC014RM",null,null,"XPOLogistics SANDOUVILLE"]
[null,"EC054VK","2019-04-17","XPOU 150 130 / 4 - MONOCUVE","XPOLogistics SEREZIN"]
[null,"EC887RL",null,null,"XPOLogistics SANDOUVILLE"]
[null,"ED220QZ",null,null,"XPOLogistics SAINT MIHIEL"]
[null,"ED413QX",null,null,"XPOLogistics SANDOUVILLE"]
[null,"ED593QZ",null,null,"XPOLogistics SAINT MIHIEL"]
[null,"EE034HX","2018-06-29","REMORQUE BACHEE","XPOLogistics "]
[null,"EE132JL",null,null,"XPOLogistics SEREZIN"]
[null,"EE321NY",null,null,"XPOLogistics SANDOUVILLE"]
[null,"EE343JL",null,null,"XPOLogistics SEREZIN"]
[null,"EF121DR","2018-09-12","L4BH - MONOCUVE - 37500L","XPOLogistics SEREZIN"]
[null,"EF128XY","2019-09-27","L4BH - 3 CUVES - 7391L/29969L/7470L","XPOLogistics SAINT MIHIEL"]
[null,"EF286DR",null,null,"XPOLogistics SEREZIN"]
[null,"EF395XY","2019-10-10","L4BH - 3 CUVES - 7408L/29852L/7461L","XPOLogistics SAINT MIHIEL"]
[null,"EF566XX","2019-10-04","L4BH -  MONOCUVE - 37500L","XPOLogistics SAINT MIHIEL"]
[null,"EF705SV","2018-10-09","REMORQUE BACHEE","XPOLogistics"]
[null,"EG056BM","2019-10-07","L4BH - MONOCUVE - 37500L","XPOLogistics SAINT MIHIEL"]
[null,"EG117SJ",null,null,"XPOLogistics SEREZIN"]
[null,"EG275BM","2018-10-17","L4BH - MONOCUVE - 37440L","XPOLogistics SAINT MIHIEL"]
[null,"EG851BL","2018-10-23","L4BH - MONOCUVE - 37447L","XPOLogistics SAINT MIHIEL"]
[null,"EJ075DV",null,null,"XPOLogistics SEREZIN"]
[null,"EJ145VF",null,null,"XPOLogistics SANDOUVILLE"]
[null,"EJ916DT","2019-01-02","L4BH - MONOCUVE - 37404L","XPOLogistics SAINT MIHIEL"]
[null,"EK067LM",null,null,"XPOLogistics SANDOUVILLE"]
[null,"EK164YK",null,null,"XPOLogistics SANDOUVILLE"]
[null,"EK226VJ",null,null,"XPOLogistics SANDOUVILLE"]
[null,"EK516ZE",null,null,"XPOLogistics SANDOUVILLE"]
[null,"EK854YV",null,null,"XPOLogistics SANDOUVILLE"]
[null,"EK954ZD",null,null,"XPOLogistics SANDOUVILLE"]
[null,"EP830FQ","2018-07-18","L4BH - MONOCUVE - ","BM CHIMIE"]
[null,"EQ573ZP",null,null,"XPOLogistics SANDOUVILLE"]
[null,"ER158HC","2018-10-17","REMORQUE BACHEE","SODEL"]
[null,"ET802FZ","2019-01-09","L4BH - MONOCUVE - 37402L","XPOLogistics ST MIHIEL"]
[null,"ET864FZ","2019-01-09","L4BH - MONOCUVE - 37346L","XPOLogistics ST MIHIEL"]
[null,"EW121QA","2019-04-17","L4BH - MONOCUVE - 37422L ","XPOLogistics SEREZIN"]
[null,"EW541QA","2019-04-16","L4BH - MONOCUVE - 37397L","XPOLogistics SEREZIN"]
[null,"EX547GN","2019-05-15","L4BH - MONOCUVE - 37361L","XPOLogistics SEREZIN"]
[null,"EX570GN","2019-05-15","L4BH - MONOCUVE - 37386L","XPOLogistics SEREZIN"]
[null,"EZ137JS","2019-07-27","TASU 217 106 / 3 - MONOCUVE ","XPOLogistics ST MIHIEL"]
[null,"EZ351JS","2019-07-27","TASU 217 102 / 1 - MONOCUVE ","XPOLogistics ST MIHIEL"]
[null,"EZ699JS","2019-07-27","TASU 217 100 / 0 - MONOCUVE ","XPOLogistics ST MIHIEL"]
[null,"FA840JE","2019-09-14","XPOU 140 190 / 1 - MONOCUVE ","XPOLogistics ST MIHIEL"]
[null,"OD21HR","2018-08-22","L4BH - MONOCUVE - TANK 1098 - CAPACITE NC","Den HARTOGH"]
[null,"OD66JL","2018-11-19","L4BH - MONOCUVE - TANK 1099 - CAPACITÉ NC","Den HARTOGH"]
[null,"OG59DJ","2019-02-27","L4BH - MONOCUVE - TANK 1120 - 37500L","Den HARTOGH"]
[null,"OG65DH","2018-06-14","L4BH - MONOCUVE - TANK 1119 - 37500L","Den HARTOGH"]
[null,"OH02RP","2019-02-20","L4BH - MONOCUVE - TANK 3138 - 37470L","Den HARTOGH"]
[null,"OH09NL","2018-08-12","L4BH - MONOCUVE - TANK 3121 - 37400L","Den HARTOGH"]
[null,"OH36RP","2018-09-20","CHASSIS ","MINJDERS"]
[null,"OH36RV","2019-07-19","L4BH - MONOCUVE - TANK 3140 - 37460L","Den HARTOGH"]
[null,"OH53LS","2019-04-06","L4BH - MONOCUVE - TANK 3117 - 37371L","Den HARTOGH"]
[null,"OH54PS","2018-07-12","L4BH - MONOCUVE - TANK 3134 - 37455L","Den HARTOGH"]
[null,"OH63KH","2018-12-28","L4BH - MONOCUVE - TANK 3102 - 37500L","Den HARTOGH"]
[null,"OH68RY","2018-09-19","L4BH - MONOCUVE - TANK 3141 - 37500L","Den HARTOGH"]
[null,"OH69KF","2018-06-05","L4BH - MONOCUVE - TANK 3101 - 37500L","Den HARTOGH"]
[null,"OH74PN","2019-05-31","L4BH - MONOCUVE - TANK 3133 - 37380L ","Den HARTOGH"]
[null,"OH77NJ","2018-05-28","L4BH - MONOCUVE - TANK 3118 - 37390L","Den HARTOGH"]
[null,"OH82NR","2019-05-31","L4BH - MONOCUVE - TANK 3124 - 37400L","Den HARTOGH"]
[null,"OH83ST","2018-09-04","L4BH - MONOCUVE - TANK 3144 - 37190L","Den HARTOGH"]
[null,"OH85ST","2018-12-07","L4BH - MONOCUVE - TANK 3145 - 37350L","Den HARTOGH"]
[null,"OH89ZK","2019-01-02","A VERIFIER","Den HARTOGH"]
[null,"OH91PD","2019-06-30","L4BH - MONOCUVE - TANK 3129 - 37385L","Den HARTOGH"]
[null,"OH92NT","2018-10-03","L4BH - MONOCUVE - TANK 3125 - 37425L","Den HARTOGH"]
[null,"OH95PV","2018-07-27","L4BH - MONOCUVE - TANK 3135 - 37380L","Den HARTOGH"]
[null,"OJ15SP","2018-12-12","L4BH - MONOCUVE - TANK 3159 - 37145L","Den HARTOGH"]
[null,"OJ20NR","2019-07-31","L4BH - MONOCUVE - TANK 3151 - 37300L","Den HARTOGH"]
[null,"OJ25SL","2018-12-04","L4BH - MONOCUVE - TANK 3158 - 37215L","Den HARTOGH"]
[null,"OJ31VR","2018-08-29","A VERIFIER","Den HARTOGH"]
[null,"OJ38TJ","2019-02-11","L4BH - MONOCUVE - TANK 3163 - 37195L","Den HARTOGH"]
[null,"OJ43VH","2019-04-24","L4BH - MONOCUVE - TANK 3167 - 37131L","Den HARTOGH"]
[null,"OJ44VH","2019-04-10","L4BH - MONOCUVE - TANK 3168 - 37121L","Den HARTOGH"]
[null,"OJ59TT","2019-04-30","L4BH - MONOCUVE - TANK 3164 - 37135L","Den HARTOGH"]
[null,"OJ74XZ","2019-05-05","L4BH - MONOCUVE - TANK 3173 - 37160L","Den HARTOGH"]
[null,"OJ84VJ","2019-06-19","L4BH - MONOCUVE - TANK 3170 - 37145L","Den HARTOGH"]
[null,"OJ86XP","2018-07-04","L4BH - MONOCUVE - TANK 3174 - 00000L","Den HARTOGH"]
[null,"OJ91TV","2019-05-06","L4BH - MONOCUVE - TANK 3166 - 37135L","Den HARTOGH"]
[null,"OJ99TG","2019-02-20","L4BH - MONOCUVE - TANK 3162 - 37000L","Den HARTOGH"]
[null,"OK01YK","2018-11-28","L4BH - MONOCUVE - TANK 3220 - ","Den HARTOGH"]
[null,"OK05YK","2018-12-12","L4BH - MONOCUVE - TANK 3223 - 37500L","Den HARTOGH"]
[null,"OK06YK","2018-11-12","L4BH - MONOCUVE - TANK 3224 - CAPACITE NC","Den HARTOGH"]
[null,"OK08YK","2019-01-18","L4BH - MONOCUVE - TANK 3226 - 37500L","Den HARTOGH"]
[null,"OK10NB","2019-06-07","L4BH - MONOCUVE - TANK 3187 - CAPACITE NC","Den HARTOGH"]
[null,"OK12NB","2019-08-14","L4BH - MONOCUVE - TANK 3188 - 37300L","Den HARTOGH"]
[null,"OK12YS","2019-01-31","L4BH - MONOCUVE - TANK 3229 - 37500L","Den HARTOGH"]
[null,"OK13YS","2019-03-06","L4BH - MONOCUVE - TANK 3230 - 37500L","Den HARTOGH"]
[null,"OK15YS","2019-02-01","L4BH - MONOCUVE - TANK 3232 - 37500L","Den HARTOGH"]
[null,"OK29VH","2018-06-29","L4BH - MONOCUVE - TANK 3207 - 37500L","Den HARTOGH"]
[null,"OK31JJ","2019-01-16","A VERIFIER","Den HARTOGH"]
[null,"OK33VF","2018-05-31","L4BH - MONOCUVE - TANK 3327 - 30000L","Den HARTOGH"]
[null,"OK37VF","2019-04-05","L4BH - MONOCUVE - TANK 3331 - 30000L","Den HARTOGH"]
[null,"OK38DS","2018-08-24","L4BH - MONOCUVE - TANK 3180 - 37085L","Den HARTOGH"]
[null,"OK38VF","2019-04-03","L4BH - MONOCUVE - TANK 3332 - 30000L","Den HARTOGH"]
[null,"OK40VF","2019-05-03","L4BH - MONOCUVE - TANK 3334 - CAPACITÉ NC","Den HARTOGH"]
[null,"OK43NJ","2019-07-14","L4BH - MONOCUVE - TANK 3190 - CAPACITÉ NC","Den HARTOGH"]
[null,"OK44RG","2018-08-31","L4BH - MONOCUVE - TANK 3194 - 37300L","Den HARTOGH"]
[null,"OK65PL","2018-11-23","L4BH - MONOCUVE - TANK 3201 -37500L","Den HARTOGH"]
[null,"OK66PL","2018-09-05","L4BH - MONOCUVE - TANK 3202 - 37500L","Den HARTOGH"]
[null,"OK66VZ","2019-07-05","L4BH - MONOCUVE - TANK 3213 - 37500L","Den HARTOGH"]
[null,"OK67NB","2019-08-12","L4BH - MONOCUVE - TANK 3191 - 37300L","Den HARTOGH"]
[null,"OK68PL","2018-08-24","L4BH - MONOCUVE - TANK 3204 - 37500L","Den HARTOGH"]
[null,"OK72NB","2018-08-29","L4BH - MONOCUVE - TANK 3192 - 37300L","Den HARTOGH"]
[null,"OK73FK","2018-09-30","L4BH - MONOCUVE - TANK 3181 - 37078L","Den HARTOGH"]
[null,"OK78DX","2018-08-18","L4BH - MONOCUVE - TANK 3177 - 37157L","Den HARTOGH"]
[null,"OK85FK","2018-11-15","L4BH - MONOCUVE - TANK 3185 - 37208L","Den HARTOGH"]
[null,"OK85LS","2019-05-05","L4BH - 3 CUVES - 15000L/7500L/15000L - TANK 3515 ","Den HARTOGH"]
[null,"OK85ZL","2019-02-11","L4BH - MONOCUVE - TANK 3237 - 37500L","Den HARTOGH"]
[null,"OK87ZL","2019-01-31","L4BH - MONOCUVE - TANK 3238 - 37500L","Den HARTOGH"]
[null,"OK90PH","2018-08-19","L4BH - MONOCUVE - TANK 3189 - 37547L","Den HARTOGH"]
[null,"OK91PH","2018-08-19","L4BH - MONOCUVE - TANK 3193 - 37300L","Den HARTOGH"]
[null,"OK92YJ","2018-11-20","L4BH - MONOCUVE - TANK 3216 - 37500L","Den HARTOGH"]
[null,"OK95ZL","2019-05-17","L4BH - MONOCUVE - TANK 3242- 37500L","Den HARTOGH"]
[null,"OK96ZL","2019-03-29","L4BH - MONOCUVE - TANK 3243 - 37500L","Den HARTOGH"]
[null,"OK97ZL","2018-06-07","L4BH - MONOCUVE - TANK 3244 - 37500L","Den HARTOGH"]
[null,"OK99VK","2019-01-02","L4BH - MONOCUVE - TANK 2222 - CAPACITE NC","Den HARTOGH"]
[null,"ON07JH","2018-06-29","DHDU 137 525 / 3 - MONOCUVE - TANK 2350 ","Den HARTOGH"]
[null,"ON08JJ","2019-02-27","CHASSIS - CONTRÔLE DU N°CONTAINER","Den HARTOGH"]
[null,"ON14HY","2019-03-29","CHASSIS ","HOYER"]
[null,"ON17HY","2018-04-16","CHASSIS ","HOYER"]
[null,"ON99HX","2019-03-31","CHASSIS ","HOYER"]
[null,"OP10KG","2018-09-07","CHASSIS ","HAANPAA"]
[null,"QACP533","2019-08-28","L4BH - MONOCUVE - CAPACITÉ NC","Den HARTOGH"]
[null,"QACS901","2019-04-25","L4BH - MONOCUVE - TANK 3340 - CAPACITE NC","Den HARTOGH"]
[null,"QACX140","2018-06-09","L4BH - MONOCUVE - 30000L","Den HARTOGH"]
[null,"QACY917","2018-06-14","L4BH - MONOCUVE ","TRAFUCO"]
[null,"R6064BCC","2018-06-12","L4BH - MONOCUVE ","PANALON"]
[null,"REKH299","2019-04-30","L4BH - MONOCUVE - 30000L","HUBERT KLASENER"]
[null,"WP3736C","2018-09-20","CHASSIS - CONTRÔLE DU N°CONTAINER","BERTSCHI"]
[null,"FZI43806","2017-07-09",null,"Den HARTOGH"]
[null,"FZI43809","2018-07-06",null,"Den HARTOGH"]
[null,"FZI43812","2019-06-27",null,"Den HARTOGH"]
[null,"FZI44184","2018-06-23",null,"Den HARTOGH"]
[null,"FZI44185","2019-05-23",null,"Den HARTOGH"]
[null,"FZI44186","2019-06-14",null,"Den HARTOGH"]
[null,"FZI56534","2019-01-30",null,"Den HARTOGH"]
[null,"FZI56535","2019-02-20",null,"Den HARTOGH"]
[null,"FZI56537","2019-02-21",null,"Den HARTOGH"]
[null,"FZI56540","2019-02-02",null,"Den HARTOGH"]
[null,"FZI56541","2019-01-30",null,"Den HARTOGH"]

{"sheet":"MENU LIV HUNTSMAN","index":12,"n_rows":0,"n_cols":0,"rows_kept":0,"cut":false,"hidden":false,"merged":[]}

{"sheet":"BL HSO OUDALLE","index":13,"n_rows":51,"n_cols":9,"rows_kept":51,"cut":false,"hidden":false,"merged":[[0,7,0,8],[14,1,14,2],[15,1,15,2],[13,1,13,3],[6,1,6,2],[7,1,7,2],[9,1,9,2],[11,1,11,2],[12,1,12,2],[1,7,1,8],[6,4,6,5],[6,7,6,8],[1,4,1,5],[0,4,0,5],[48,1,48,8],[7,4,7,5],[7,7,7,8],[49,1,49,8],[50,1,50,8],[21,7,21,8],[23,1,23,2],[18,7,18,8]]}
[null,"Huntsman Holland B.V.",null,null,"HUNTSMAN",null,null,{"$f":"TODAY()","v":"2019-10-23"}]
[null,"Merseyweg 10",null,null,"Enriching lives through innovation",null,null,"Delivery Note"]
[null,"P.O. Box 1020"]
[null,"3180 AA Rozenburg"]
[null,"Netherlands"]
[]
[null,"Delivery Number",null,"Hss Delivery","Customer Ref.Number",null,"Loading Date","Delivery Date"]
[null,"70029417",null,"72629149","4503095117",null,"19/12/2018","20/12/2018"]
[]
[null,"Consignee",null,null,"Carrier"]
[null,null,null,null,null,"XPO KEY PL EUROPE"]
[null,"LUBRIZOL France"]
[null,"Z.I. Portuaire du Havre"]
[null,"Route du Canal de Tancarville"]
[null,"76430 OUDALLE"]
[null,"France"]
[]
[null,"Terms of Delivery",null,null,null,"Vehicle Type Number"]
[null,"DDP",null,null,null,"ROADTANKER",null,"BV783ZH"]
[null,"LE HAVRE"]
[]
[null,"Material Description",null,null,null,null,"Quantity","Net weight"]
[]
[null,"304942 HSO-0",null,null,null,null,"BULK","27900","KG"]
[null,"UN 2586 , ACIDES ARYLSULFONIQUES LIQUIDES ,"]
[null,"(ALKYLBENZENE SULPHONIC ACID),8, III ,"]
[null,"A300 SULPHONIC ACID CONC."]
[null,"ALKYLBENZENE SULFONIC ACID"]
[]
[]
[null,"Temperature de chargement HSO-0 : 70 - 80°C"]
[null,"Pas de booking - Livraison entre 8:00 AM - 15:00 PM"]
[null,"Respecter 3H entre chaque citerne"]
[]
[]
[]
[]
[]
[]
[]
[]
[]
[]
[]
[]
[]
[]
[]
[null,"Huntman in Holland is part of the legal entity Huntsman Holland B.V. , a subsidiary company of"]
[null,"Huntsman Investments ( Netherlands ) B.V."]
[null,"Registered with the Rotterdam Chamber of Commerce under No. 24070891 and statutory domiciled at Rotterdam."]

{"sheet":"HSO OUDALLE","index":14,"n_rows":44,"n_cols":10,"rows_kept":44,"cut":false,"hidden":false,"merged":[]}
[]
[null,"date chargement","date livraison","HSS Delivery","Delivery Innospec","Lubrizol Ref","citerne","Transporteur","Seals Number","Quantité"]
[null,"2018-10-01","2018-10-02",72590746,"70026281","4503050962","BW776XY","XPOLOGISTICS","543617-18-19-20",25600]
[null,"2018-10-02","2018-10-03",72590747,"70026288","4503050963","BX799NB"]
[null,"2018-10-03","2018-10-04",72590748,"70026386","4503050970"]
[null,"2018-10-16","2018-10-17",72598137,"70026763","4503059161","BX627CC"]
[null,"2018-10-19","2018-10-22",72600422,"70027084","4503063270","BY608MY"]
[null,"2018-10-22","2018-10-23",72600423,"70027183","4503063271","BW010LT"]
[null,"2018-10-23","2018-10-24",72600425,"70027223","4503063272"]
[null,"2018-10-23","2018-10-24",72600428,"70027224","4503063274"]
[null,"2018-10-24","2018-10-25",72600426,"70027270","4503063275","BW073NE","XPOLOGISTICS"]
[null,"2018-10-25","2018-10-26",72600427,"70027271","4503063276","BY372LA"]
[null,"2018-10-25","2018-10-26",72600429,"70027206","4503063278","BY169MZ"]
[null,"2018-10-29","2018-10-30",72605088,"70027428","4503067731","BY038MZ"]
[null,"2018-10-29","2018-10-30",72605085,"70027429","4503067733","BX627CC","XPOLOGISTICS",null,27740]
[null,"2018-10-30","2018-10-31",72605086,null,"4503067735"]
[null,"2018-10-30","2018-10-31",72605089,"70027434","4503067734","BY737MY","XPOLOGISTICS",null,26600]
[null,"2018-11-02","2018-11-05",72608498,"70027532","4503072629","BX799NB","XPOLOGISTICS",null,27820]
[null,"2018-11-02","2018-11-05",72608504,"70027582","4503072630","BZ002TC","XPOLOGISTICS",null,27920]
[null,"2018-11-05","2018-11-06",72608499,"70027583","4503072631","BW010LT","XPOLOGISTICS"]
[null,"2018-11-06","2018-11-07",72608500,"70027584","4503072632","BV783ZH","XPOLOGISTICS",null,27760]
[null,"2018-11-07","2018-11-08",72608501,"70027585","4503072635","BW667YA"]
[null,"2018-11-07","2018-11-08",72608505,"70027586","4503072634","BZ010TC","XPOLOGISTICS",null,27600]
[null,"2018-11-09","2018-11-12",72608502,"70027587","4503072636","BY169MZ"]
[null,"2018-11-09","2018-11-12",72613519,"70027866","4503076312","BY097LA"]
[null,"2018-11-12","2018-11-13",72613520,"70027870","4503076313","BY049KZ","XPOLOGISTICS",null,27460]
[null,"2018-11-14","2018-11-15",72613521,"70027881","4503076315","BY701KZ"]
[null,"2018-11-14","2018-11-15",72613522,"70027882","4503076316","BY169MZ","XPOLOGISTICS",null,27480]
[null,"2018-11-15","2018-11-16",72613523,"70027885","4503076317","BW692NB"]
[null,"2018-11-16","2018-11-19",72614994,"70028025","4503080105","BV783ZH"]
[null,"2018-11-20","2018-11-21",72614995,"70028110","4503080106","BY608MY"]
[null,"2018-11-21","2018-11-22",72614996,"70028113","4503080107","AT218VQ","XPOLOGISTICS"]
[null,"2018-11-22","2018-11-23",72614997,"70028116","4503080108"]
[null,"2018-11-26","2018-11-27",72618504,"70028374","4503084154","BW692NB","XPO LOGISTICS",null,27740]
[null,"2018-11-26","2018-11-27",72618509,"70028383","4503084155"]
[null,"2018-11-27","2018-11-28",72618506,"70028387","4503084158"]
[null,"2018-11-28","2018-11-29",72618507,"70028388","4503084157"]
[null,"2018-11-29","2018-11-30",72618508,"70028389","4503084160"]
[null,"9 dec","10 dec",72628346,"70029067","4503092424","BZ002TC","XPO LOGISTICS",null,27800]
[null,"10 DEC","11 DEC",72628414,"70029088","4503092426","BY 049 KZ","XPO LOGISTICS",null,27860]
[null,"16 DEC","17 DEC",72628347,"70029072","4503092428","BZ011TC","XPO LOGISTICS"]
[null,"2018-12-19","2018-12-20",72629148,"70029235","4503095116","BW073NE","XPOLOGISTICS","No seals",27820]
[null,"2018-12-19","2018-12-20",72629147,"70029234","4503095115","BY372LA","XPOLOGISTICS","No seals",28040]
[null,"2018-12-19","2018-12-20",72629149,"70029417","4503095117","BV783ZH","XPOLOGISTICS","No seals",27900]

{"sheet":"ZDGN HSO OUDALLE","index":15,"n_rows":99,"n_cols":9,"rows_kept":99,"cut":false,"hidden":false,"merged":[[2,7,2,8],[1,5,1,6],[3,5,3,6],[0,1,0,2],[0,3,0,6],[2,1,2,2],[3,1,3,2],[55,0,55,3],[50,2,50,3],[51,0,51,1],[52,1,52,2],[46,0,46,1],[55,6,55,7],[4,7,4,8],[8,1,8,2],[9,1,9,2],[10,1,10,3],[4,1,4,2],[20,1,20,2],[16,5,16,6],[11,1,11,2],[7,5,7,6],[11,5,11,6],[15,1,15,2],[16,1,16,2],[15,5,15,6],[27,7,27,8],[37,3,37,5],[41,0,41,1],[24,2,24,3],[25,1,25,4],[26,1,26,2],[28,1,29,4],[31,1,31,4],[32,1,32,2],[33,1,33,4],[24,0,36,0],[37,0,37,1],[38,0,38,1],[39,0,39,1],[40,0,40,1],[23,5,23,8],[22,5,22,6],[23,3,23,4],[24,6,25,6],[24,7,25,7],[45,6,46,6],[45,7,46,7],[36,1,36,4],[53,0,53,1],[53,2,53,3],[53,5,53,6],[48,5,48,7],[37,6,38,6],[43,7,43,8],[48,2,48,4],[48,0,49,1],[50,0,50,1],[45,0,45,1],[45,4,45,5],[46,2,47,3],[38,3,44,5],[57,1,57,7],[58,1,58,7],[59,2,59,7],[60,2,60,7],[61,2,61,7],[62,2,62,7],[63,1,63,4],[64,2,64,7],[65,2,65,7],[66,2,66,7],[74,1,74,7],[75,1,75,7],[76,1,76,7],[78,2,78,7],[67,2,67,7],[68,2,68,7],[69,2,69,7],[70,2,70,7],[71,2,71,7],[83,2,83,7],[84,2,84,7],[85,2,85,8],[86,2,86,8],[79,2,79,8],[80,2,80,7],[81,2,81,7],[82,2,82,7],[93,2,93,8],[95,1,95,6],[98,1,98,7],[88,2,88,8],[89,2,89,7],[90,2,90,7],[91,2,91,7],[92,2,92,8]]}
[null,"DANGEROUS GOODS DECLARATION, SHIPPING NOTE & CONTAINER/VEHICULE PACKING CERTIFICATE © SITPRO 1995",null,"           DANGEROUS GOOD NOTE",null,null,null,"1 / 1"]
[null,"Exporter",null,null,1,"Customs reference/status",null,null,2]
[null,"Huntsman Holland BV St.Mihiel",null,null,null,null,null,70029417]
[null,"BP . 19 - ZI de HAN-sur-Meuse",null,null,null,"Booking number",null,"Exporter's reference",4]
[null,"55300 Saint Mihiel",null,null,null,null,null,72629149]
[null,{"$f":"UPPER(\"france\")","v":"FRANCE"},null,null,null,null,null,"Forwarder's reference",5]
[]
[null,null,null,null,6,"DSHA Notification given by :",null,null,"6A"]
[null,"LUBRIZOL France",null,null,null,"Shipper","Cargo agent","Transport operator","Shipping line"]
[null,"Z.I. PORTUAIRE DU HAVRE"]
[null,"ROUTE DU CANAL DE TANCARVILLE"]
[null,"76430 OUDALLE",null,null,null,"(in accordance with DSHA Regulations)"]
[null,{"$f":"UPPER(\"france\")","v":"FRANCE"}]
[]
[null,"Freight forwarder",null,null,7,"International carrier",null,null,8]
[null,null,null,null,null,"XPOLOGISTICS"]
[null,"XPOLOGISTICS",null,null,null,"For use of receiving authorithy only"]
[]
[null,"Other UK transport details (eg. ICD, terminal, vehicle bkg. Ref. receiving dates )",null,null,9]
[]
[null,"Vessel/flight no. And date",null,"Port/airport of loading",10]
[]
[null,"Port/airport of discharge",null,"Destination",11,"TO THE RECEIVING AUTHORITY"]
[null,null,null,"OUDALLE",null,"please receive for shipment the goods described below subject to your published regulations and conditions (including those as to liability)."]
["CONTAINER VEHICLE PACKING CERTIFICATE I hereby declare that the goods described above have been packed loaded into the container/vehicle identified below in accordance with the provisions shown overleaf.    MUST BE COMPLETED AND SIGNED FOR ALL CONTAINER/VEHICLE LOADS BY PERSON RESPONSIBLE FOR PACKING/LOADING","Shipping marks","Number and king of packages; description of goods'",null,12,"Net wt (kg)          13","Gross wt (kg)   13A of goods","Cube (m3) of goods",14]
[null,"SPECIFY: PROPER SHIPPING NAME *, IMO HAZARD CLASS, UN No. Addional Information (if applicable, see overleaf)"]
[null,"01 14 Truck containing"]
[null,null,27900,"KG HSO-0",null,27900,27900,"0,000"]
[null,"UN 2586, ACIDES ARYLSULFONIQUES LIQUIDES, (ALKYLBENZENE SULPHONIC ACID), 8, III, ( E )"]
[]
[]
[null,"Huntsman Emergency Response 24 Hour Number:              "]
[null,{"$f":"\"+32 3575 1234\"","v":"+32 3575 1234"}]
[null,"for transport and distribution incidents only"]
[]
[]
[null,"* PROPER SHIPPING NAME - TRADE ALONE ARE UNACCEPTABLE."]
["Name of compagny",null,15,"DANGEROUS GOODS DECLARATION",null,null,"Total gross weight of goods","Total cube of goods"]
["HHBV St Mihiel bulk",null,null,"I hereby declare that the contents are fully and accurately described above by the proper shipping name(s), that the shipment is packaged in such a manner as to withstand the ordinary risks of handling and transport by sea, having regard to the properties of the goods to be carried, and that the goods are classified, marked and labelled, and are in all respects in accordance with applicable international and national governmental regulations, I further declare that, if appropriate, the goods are classified, packaged and marked to comply with the requirements of the European Agreement concerning the International Carriage of Dangerous Goods by Road (ADR) and of Annex 1 (RID) to the Iniform Rules concerning the Contract for International Carriage of Goods by Rail (CIM) or special arrangements made between the contracting parties to these Agreements.The shipper must complete and sign BOX 17."]
["Name/status of declarant",null,"Saint Mihiel"]
["Place and date",null,{"$f":"TODAY()","v":"2019-10-23"}]
["Signature of declarant"]
[]
[null,null,null,null,null,null,27900,"0,000"]
[]
["PREFIX and container/trailer numbers",null,"Seal number(s)","16A","Container/trailer size(s) and type(s)",null,"Tare wt(kg) as marked on CSC plate","Total of boxes 13A and 16C"]
["BV783ZH",null,"No seals"]
[null,16,null,null,null,"16B","16C",null,"16D"]
["DOCK/TERMINAL RECEIPT RECEIVING AUTHORITY REMARKS",null,"Received the above number of packages/containers/trailers in good order and condition unless stated hereon",null,null,"Name and telephone no. Of shipper preparing this note"]
[]
["Haulier's name",null,"XPOLOGISTICS"]
["Vehicle reg. No"]
[null,"BV783ZH"]
["DRIVER'S SIGNATURE",null,"SIGNATURE AND DATE",null,null,"Signature of declarant"]
[]
["890 Non-completion of any boxes is a subject for resolution by the contracting parties",null,null,null,null,null,"© SITPRO Licensee NO. 000."]
[]
[null,"ADDITIONAL INFORMATION - Box 12 Number and kind of packages; description of goods"]
[null,"The following information must also appear in association with the Proper Shipping Name, IMOP Class/Division and UN Number :"]
[null,"(a)","Packing Group - where assigned"]
[null,"(b)","The words 'MARINE POLLUTANT' - for substances so designed in IMDG Code."]
[null,"(c)","The minimum closed cup (cc) flashpoint in C - if 61C or less."]
[null,"(d)","Subsidiary hazards not communicated in the Proper Shipping Name ."]
[null,"Additional information is required for :"]
[null,"(e)","Substances and articles in Classes 1 and 2 ."]
[null,"(f)","Certain substances in Classes 4.1 and 5.2."]
[null,"(g)","Infectious substances (Class 6.2)."]
[null,"(h)","Radioactive materials (Class 7)"]
[null,"(i)","Empty packagings/tanks containing residues."]
[null,"(j)","Waste dangerous goods."]
[null,"(k)","Dangerous goods consigned as Limited Quantities."]
[null,"(l)","Dangerous goods requiring a weathering certificate."]
[]
[]
[null,"CONTAINER/VEHICLE PACKING CERTIFICATE ( see box 15 overleaf)"]
[null,"THE SIGNATURE GIVEN OVERLEAF IN BOX 15 MUST BE THAT OF THE PERSON CONTROLLING"]
[null,"THE CONTAINER/VEHICLE OPERATION"]
[null,"It is certified that :"]
[null,"1.","The container/vehicle was clean, dry and apparently fit to receive the goods."]
[null,"2.","If the consignments include goods of class1 , other than division 1.4, the container is structurally servicable in conformity with section 12 of the "]
[null,null,"introduction to Class 1 of the IMDG Code."]
[null,"3.","No incompatible goods have been packed into the container/vehicle unless specially authorised by the Competent Authority ;"]
[null,"4.","All packages have been externally inspected for damage and only sound packages packed;"]
[null,"5.","Drums have been stowed in an upright position, unless otherwise authorised by the Competent Authority."]
[null,"6.","All packages have been properly packed and secured in the container/vehicle."]
[null,"7.","When materials are transported in bulk packaging the cargo has been evenly distributed in the container/vehicle."]
[null,"8.","The packages and the container/vehicle have been properly marked, labelled and placarted. Any irrevelant marks, labels and placards have been"]
[null,null,"removed;"]
[null,"9.","When solid Carbon Dioxide (CO2 - dry ice) is used for cooling purposes, the vehicle or freight container is externally marked or labelled in a "]
[null,null,"conspicuous place, e.g. at the door end, with the words:"]
[null,null,"DANGEROUS CO2 - GAS (DRY ICE) INSIDE,"]
[null,null,"VENTILATE THOROUGHLY BEFORE ENTERING;"]
[null,"10.","When this Dangerous Goods Note is used as a container/vehicle packing certificate only, not a combined document, a Dangerous Goods "]
[null,null,"Declaration signed by the shipper or supplier has been issued/received to cover each dangerous goods consignment packed in the container;"]
[]
[null,"Note/ The container packing certificate is not required for thanks."]
[]
[]
[null,"\"Refer to the IMDG Code and SITPRO/FTA Completion Guide for further details\""]

{"sheet":"BL XHS118 INFINEUM","index":16,"n_rows":48,"n_cols":9,"rows_kept":48,"cut":false,"hidden":false,"merged":[[45,1,45,8],[46,1,46,8],[47,1,47,8],[21,7,21,8],[23,1,23,2],[0,4,0,6],[14,1,14,3],[1,4,1,6],[13,1,13,3],[18,7,18,8],[7,1,7,2],[7,4,7,5],[7,7,7,8],[9,1,9,2],[11,1,11,2],[0,7,0,8],[1,7,1,8],[6,1,6,2],[6,4,6,5],[6,7,6,8]]}
[null,"Huntsman Holland B.V.",null,null,"HUNTSMAN",null,null,{"$f":"TODAY()","v":"2019-10-23"}]
[null,"Merseyweg 10",null,null,"Enriching lives through Innovation",null,null,"Delivery Note"]
[null,"P.O. Box 1020"]
[null,"3180 AA Rozenburg"]
[null,"Netherlands"]
[]
[null,"Delivery Number",null,"Hss Delivery","Customer Ref.Number",null,"Loading Date","Delivery Date"]
[]
[]
[null,"Consignee",null,null,"Carrier"]
[null,null,null,null,null,"XPO KEY PL EUROPE"]
[null,"INFINEUM France S.N.C"]
[null,"c/o Compagnie Pétrochimique de Berre"]
[null,"Chemin Départemental 54"]
[null,"Usine Chimique de Berre"]
[null,"13130 Berre L'Etang - France"]
[]
[null,"Terms of Delivery",null,null,null,"Vehicle Type Number"]
[null,"DDP",null,null,null,"ROADTANKER"]
[null,"BERRE L'ETANG"]
[]
[null,"Material Description",null,null,null,null,"Quantity","Net weight"]
[]
[null,"304943 XHS-118",null,null,null,null,"BULK",null,"KG"]
[null,"UN 2586 , ACIDES ARYLSULFONIQUES LIQUIDES ,"]
[null,"(ALKYLBENZENE SULPHONIC ACID),8, III ,"]
[null,"UN 2586 , ARYLSULPHONIC ACIDS , LIQUID,"]
[null,"(ALKYLBENZENE SULPHONIC ACID) , 8 , III ,"]
[]
[]
[]
[null,"Livraison à 08:00"]
[]
[null,"Gate Moulin Vieux - > Unité Centre de vie additifs ( control room )"]
[]
[]
[]
[]
[]
[]
[]
[]
[]
[]
[]
[null,"Huntman in Holland is part of the legal entity Huntsman Holland B.V. , a subsidiary company of"]
[null,"Huntsman Investments ( Netherlands ) B.V."]
[null,"Registered with the Rotterdam Chamber of Commerce under No. 24070891 and statutory domiciled at Rotterdam."]

{"sheet":"XHS118 INFINEUM","index":17,"n_rows":4,"n_cols":10,"rows_kept":4,"cut":false,"hidden":false,"merged":[]}
[]
[null,"date chargement","date livraison","HSS Delivery","Delivery Innospec","Infineum Ref","citerne","Transporteur","Seals Number","Quantité"]
[null,"2018-01-02","2018-01-03",72449062,"70015254","4502880677","BY935MY","XPOLOGISTICS","543617-18-19-20",25600]
[null,"2018-09-13","2018-09-14",72556301,"70024876",null,"EF395XY-CUVE2"]

{"sheet":"ZDGN XHS118 INFINEUM","index":18,"n_rows":99,"n_cols":9,"rows_kept":99,"cut":false,"hidden":false,"merged":[[91,2,91,7],[92,2,92,8],[93,2,93,8],[95,1,95,6],[98,1,98,7],[84,2,84,7],[78,2,78,7],[79,2,79,8],[80,2,80,7],[81,2,81,7],[82,2,82,7],[83,2,83,7],[85,2,85,8],[86,2,86,8],[88,2,88,8],[89,2,89,7],[90,2,90,7],[76,1,76,7],[63,1,63,4],[64,2,64,7],[65,2,65,7],[66,2,66,7],[67,2,67,7],[68,2,68,7],[69,2,69,7],[70,2,70,7],[71,2,71,7],[74,1,74,7],[75,1,75,7],[62,2,62,7],[52,1,52,2],[53,0,53,1],[53,2,53,3],[53,5,53,6],[55,0,55,3],[55,6,55,7],[57,1,57,7],[58,1,58,7],[59,2,59,7],[60,2,60,7],[61,2,61,7],[51,0,51,1],[43,7,43,8],[45,0,45,1],[45,4,45,5],[45,6,46,6],[45,7,46,7],[46,0,46,1],[46,2,47,3],[48,0,49,1],[48,2,48,4],[48,5,48,7],[50,0,50,1],[50,2,50,3],[20,1,20,2],[22,5,22,6],[23,3,23,4],[23,5,23,8],[37,0,37,1],[37,3,37,5],[37,6,38,6],[38,0,38,1],[38,3,44,5],[39,0,39,1],[40,0,40,1],[41,0,41,1],[28,1,30,4],[32,1,32,4],[34,1,34,4],[33,1,33,2],[24,0,36,0],[24,2,24,3],[24,6,25,6],[24,7,25,7],[25,1,25,4],[26,1,26,2],[27,7,27,8],[31,1,31,4],[36,1,36,4],[10,1,10,3],[11,5,11,6],[15,1,15,2],[15,5,15,6],[16,1,16,2],[16,5,16,6],[11,1,11,3],[4,1,4,2],[4,7,4,8],[7,5,7,6],[8,1,8,2],[3,1,3,2],[3,5,3,6],[0,1,0,2],[0,3,0,6],[1,5,1,6],[2,1,2,2],[2,7,2,8]]}
[null,"DANGEROUS GOODS DECLARATION, SHIPPING NOTE & CONTAINER/VEHICULE PACKING CERTIFICATE © SITPRO 1995",null,"           DANGEROUS GOOD NOTE",null,null,null,"1 / 1"]
[null,"Exporter",null,null,1,"Customs reference/status",null,null,2]
[null,"Huntsman Holland BV St.Mihiel"]
[null,"BP . 19 - ZI de HAN-sur-Meuse",null,null,null,"Booking number",null,"Exporter's reference",4]
[null,"55300 Saint Mihiel"]
[null,{"$f":"UPPER(\"france\")","v":"FRANCE"},null,null,null,null,null,"Forwarder's reference",5]
[]
[null,null,null,null,6,"DSHA Notification given by :",null,null,"6A"]
[null,"INFINEUM France S.N.C",null,null,null,"Shipper","Cargo agent","Transport operator","Shipping line"]
[null,"c/o Compagnie Pétrochimique de Berre"]
[null,"Chemin Départemental 54"]
[null,"Usine Chimique de Berre",null,null,null,"(in accordance with DSHA Regulations)"]
[null,"13130 Berre L'Etang - France"]
[]
[null,"Freight forwarder",null,null,7,"International carrier",null,null,8]
[]
[null,null,null,null,null,"For use of receiving authorithy only"]
[]
[null,"Other UK transport details (eg. ICD, terminal, vehicle bkg. Ref. receiving dates )",null,null,9]
[]
[null,"Vessel/flight no. And date",null,"Port/airport of loading",10]
[]
[null,"Port/airport of discharge",null,"Destination",11,"TO THE RECEIVING AUTHORITY"]
[null,null,null,"BERRE L'ETANG - France",null,"please receive for shipment the goods described below subject to your published regulations and conditions (including those as to liability)."]
["CONTAINER VEHICLE PACKING CERTIFICATE I hereby declare that the goods described above have been packed loaded into the container/vehicle identified below in accordance with the provisions shown overleaf.    MUST BE COMPLETED AND SIGNED FOR ALL CONTAINER/VEHICLE LOADS BY PERSON RESPONSIBLE FOR PACKING/LOADING","Shipping marks","Number and king of packages; description of goods'",null,12,"Net wt (kg)          13","Gross wt (kg)   13A of goods","Cube (m3) of goods",14]
[null,"SPECIFY: PROPER SHIPPING NAME *, IMO HAZARD CLASS, UN No. Addional Information (if applicable, see overleaf)"]
[null,"01 14 Truck containing"]
[null,null,null,"KG XHS-118",null,null,null,"0,000"]
[null,"UN 2586, ACIDES ARYLSULFONIQUES LIQUIDES, (ALKYLBENZENE SULPHONIC ACID), 8, III, UN 2586, ACIDES ARYLSULFONIQUES LIQUIDES, (ALKYLBENZENE SULPHONIC ACID), 8, III, ( E )"]
[]
[]
[]
[]
[]
[]
[]
[null,"* PROPER SHIPPING NAME - TRADE ALONE ARE UNACCEPTABLE."]
["Name of compagny",null,15,"DANGEROUS GOODS DECLARATION",null,null,"Total gross weight of goods","Total cube of goods"]
["HHBV St Mihiel bulk",null,null,"I hereby declare that the contents are fully and accurately described above by the proper shipping name(s), that the shipment is packaged in such a manner as to withstand the ordinary risks of handling and transport by sea, having regard to the properties of the goods to be carried, and that the goods are classified, marked and labelled, and are in all respects in accordance with applicable international and national governmental regulations, I further declare that, if appropriate, the goods are classified, packaged and marked to comply with the requirements of the European Agreement concerning the International Carriage of Dangerous Goods by Road (ADR) and of Annex 1 (RID) to the Iniform Rules concerning the Contract for International Carriage of Goods by Rail (CIM) or special arrangements made between the contracting parties to these Agreements.The shipper must complete and sign BOX 17."]
["Name/status of declarant",null,"Saint Mihiel"]
["Place and date",null,{"$f":"TODAY()","v":"2019-10-23"}]
["Signature of declarant"]
[]
[null,null,null,null,null,null,null,"0,000"]
[]
["PREFIX and container/trailer numbers",null,"Seal number(s)","16A","Container/trailer size(s) and type(s)",null,"Tare wt(kg) as marked on CSC plate","Total of boxes 13A and 16C"]
[]
[null,16,null,null,null,"16B","16C",null,"16D"]
["DOCK/TERMINAL RECEIPT RECEIVING AUTHORITY REMARKS",null,"Received the above number of packages/containers/trailers in good order and condition unless stated hereon",null,null,"Name and telephone no. Of shipper preparing this note"]
[]
["Haulier's name"]
["Vehicle reg. No"]
[]
["DRIVER'S SIGNATURE",null,"SIGNATURE AND DATE",null,null,"Signature of declarant"]
[]
["890 Non-completion of any boxes is a subject for resolution by the contracting parties",null,null,null,null,null,"© SITPRO Licensee NO. 000."]
[]
[null,"ADDITIONAL INFORMATION - Box 12 Number and kind of packages; description of goods"]
[null,"The following information must also appear in association with the Proper Shipping Name, IMOP Class/Division and UN Number :"]
[null,"(a)","Packing Group - where assigned"]
[null,"(b)","The words 'MARINE POLLUTANT' - for substances so designed in IMDG Code."]
[null,"(c)","The minimum closed cup (cc) flashpoint in C - if 61C or less."]
[null,"(d)","Subsidiary hazards not communicated in the Proper Shipping Name ."]
[null,"Additional information is required for :"]
[null,"(e)","Substances and articles in Classes 1 and 2 ."]
[null,"(f)","Certain substances in Classes 4.1 and 5.2."]
[null,"(g)","Infectious substances (Class 6.2)."]
[null,"(h)","Radioactive materials (Class 7)"]
[null,"(i)","Empty packagings/tanks containing residues."]
[null,"(j)","Waste dangerous goods."]
[null,"(k)","Dangerous goods consigned as Limited Quantities."]
[null,"(l)","Dangerous goods requiring a weathering certificate."]
[]
[]
[null,"CONTAINER/VEHICLE PACKING CERTIFICATE ( see box 15 overleaf)"]
[null,"THE SIGNATURE GIVEN OVERLEAF IN BOX 15 MUST BE THAT OF THE PERSON CONTROLLING"]
[null,"THE CONTAINER/VEHICLE OPERATION"]
[null,"It is certified that :"]
[null,"1.","The container/vehicle was clean, dry and apparently fit to receive the goods."]
[null,"2.","If the consignments include goods of class1 , other than division 1.4, the container is structurally servicable in conformity with section 12 of the "]
[null,null,"introduction to Class 1 of the IMDG Code."]
[null,"3.","No incompatible goods have been packed into the container/vehicle unless specially authorised by the Competent Authority ;"]
[null,"4.","All packages have been externally inspected for damage and only sound packages packed;"]
[null,"5.","Drums have been stowed in an upright position, unless otherwise authorised by the Competent Authority."]
[null,"6.","All packages have been properly packed and secured in the container/vehicle."]
[null,"7.","When materials are transported in bulk packaging the cargo has been evenly distributed in the container/vehicle."]
[null,"8.","The packages and the container/vehicle have been properly marked, labelled and placarted. Any irrevelant marks, labels and placards have been"]
[null,null,"removed;"]
[null,"9.","When solid Carbon Dioxide (CO2 - dry ice) is used for cooling purposes, the vehicle or freight container is externally marked or labelled in a "]
[null,null,"conspicuous place, e.g. at the door end, with the words:"]
[null,null,"DANGEROUS CO2 - GAS (DRY ICE) INSIDE,"]
[null,null,"VENTILATE THOROUGHLY BEFORE ENTERING;"]
[null,"10.","When this Dangerous Goods Note is used as a container/vehicle packing certificate only, not a combined document, a Dangerous Goods "]
[null,null,"Declaration signed by the shipper or supplier has been issued/received to cover each dangerous goods consignment packed in the container;"]
[]
[null,"Note/ The container packing certificate is not required for thanks."]
[]
[]
[null,"\"Refer to the IMDG Code and SITPRO/FTA Completion Guide for further details\""]

{"sheet":"BL HSA118 INFINEUM","index":19,"n_rows":50,"n_cols":9,"rows_kept":50,"cut":false,"hidden":false,"merged":[[7,1,7,2],[7,4,7,5],[7,7,7,8],[9,1,9,2],[6,7,6,8],[0,4,0,6],[0,7,0,8],[1,4,1,6],[1,7,1,8],[6,1,6,2],[6,4,6,5],[49,1,49,8],[11,1,11,2],[13,1,13,3],[14,1,14,3],[18,7,18,8],[21,7,21,8],[47,1,47,8],[48,1,48,8]]}
[null,"Huntsman Holland B.V.",null,null,"HUNTSMAN",null,null,{"$f":"TODAY()","v":"2019-10-23"}]
[null,"Merseyweg 10",null,null,"Enriching lives through Innovation",null,null,"Delivery Note"]
[null,"P.O. Box 1020"]
[null,"3180 AA Rozenburg"]
[null,"Netherlands"]
[]
[null,"Delivery Number",null,"Hss Delivery","Customer Ref.Number",null,"Loading Date","Delivery Date"]
[]
[]
[null,"Consignee",null,null,"Carrier"]
[null,null,null,null,null,"XPO KEY PL EUROPE"]
[null,"INFINEUM France S.N.C"]
[null,"c/o Compagnie Pétrochimique de Berre"]
[null,"Chemin Départemental 54"]
[null,"Usine Chimique de Berre"]
[null,"13130 Berre L'Etang - France"]
[]
[null,"Terms of Delivery",null,null,null,"Vehicle Type Number"]
[null,"DDP",null,null,null,"ROADTANKER"]
[null,"BERRE L'ETANG"]
[]
[null,"Material Description",null,null,null,null,"Quantity","Net weight"]
[]
[null,"241702 SURFONIC HSA-118",null,null,null,null,"BULK",null,"KG"]
[null,"UN2586 , ACIDES ARYLSULFONIQUES LIQUIDES,"]
[null,"8, III, E"]
[null,"UN2586, ARYLSULFONIC ACIDS, LIQUID, 8, III , E"]
[]
[]
[null,"Marks :"]
[]
[]
[]
[]
[]
[]
[]
[]
[]
[]
[]
[]
[]
[]
[]
[]
[]
[null,"Huntman in Holland is part of the legal entity Huntsman Holland B.V. , a subsidiary company of"]
[null,"Huntsman Investments ( Netherlands ) B.V."]
[null,"Registered with the Rotterdam Chamber of Commerce under No. 24070891 and statutory domiciled at Rotterdam."]

{"sheet":"HSA118 INFINEUM","index":20,"n_rows":8,"n_cols":10,"rows_kept":8,"cut":false,"hidden":false,"merged":[]}
[]
[null,"date chargement","date livraison","HSS Delivery","Delivery Innospec","Infineum Ref","citerne","Transporteur","Seals Number","Quantité"]
[null,"2018-01-02","2018-01-03",72449062,"70015254","4502880677","BY935MY","XPOLOGISTICS","543617-18-19-20",25600]
[null,"2018-09-13","2018-09-14",72556301,"70024876",null,"EF395XY-CUVE2"]
[null,"2018-10-22","2018-10-24",72598184,"70027064","4500087330","EG275BM"]
[null,"2018-10-24","2018-10-26",72598185,"70027173","4500879331","ET802FZ"]
[null,"2018-10-25","2018-10-29",72598186,"70027207","4500879332","EG275BM"]
[null,"2018-10-29","2018-10-31",72598187,"70027307","4500879333","EX547GN"]

{"sheet":"ZDGN HSA118 INFINEUM","index":21,"n_rows":99,"n_cols":9,"rows_kept":99,"cut":false,"hidden":false,"merged":[[91,2,91,7],[92,2,92,8],[93,2,93,8],[95,1,95,6],[98,1,98,7],[76,1,76,7],[63,1,63,4],[64,2,64,7],[65,2,65,7],[66,2,66,7],[67,2,67,7],[69,2,69,7],[70,2,70,7],[71,2,71,7],[74,1,74,7],[75,1,75,7],[68,2,68,7],[86,2,86,8],[88,2,88,8],[89,2,89,7],[90,2,90,7],[78,2,78,7],[79,2,79,8],[80,2,80,7],[81,2,81,7],[82,2,82,7],[83,2,83,7],[84,2,84,7],[85,2,85,8],[62,2,62,7],[52,1,52,2],[53,0,53,1],[53,2,53,3],[53,5,53,6],[55,0,55,3],[55,6,55,7],[57,1,57,7],[58,1,58,7],[59,2,59,7],[60,2,60,7],[61,2,61,7],[51,0,51,1],[43,7,43,8],[45,0,45,1],[45,4,45,5],[45,6,46,6],[45,7,46,7],[46,0,46,1],[46,2,47,3],[48,0,49,1],[48,2,48,4],[48,5,48,7],[50,0,50,1],[50,2,50,3],[37,6,38,6],[38,0,38,1],[38,3,44,5],[39,0,39,1],[40,0,40,1],[41,0,41,1],[37,0,37,1],[37,3,37,5],[24,0,36,0],[24,2,24,3],[24,6,25,6],[24,7,25,7],[25,1,25,4],[26,1,26,2],[27,7,27,8],[36,1,36,4],[27,3,27,4],[28,1,29,4],[30,1,35,4],[15,5,15,6],[16,1,16,2],[16,5,16,6],[20,1,20,2],[3,1,3,2],[3,5,3,6],[0,1,0,2],[0,3,0,6],[1,5,1,6],[2,1,2,2],[23,3,23,4],[23,5,23,8],[2,7,2,8],[22,5,22,6],[4,1,4,2],[4,7,4,8],[7,5,7,6],[8,1,8,2],[10,1,10,3],[11,1,11,3],[11,5,11,6],[15,1,15,2]]}
[null,"DANGEROUS GOODS DECLARATION, SHIPPING NOTE & CONTAINER/VEHICULE PACKING CERTIFICATE © SITPRO 1995",null,"           DANGEROUS GOOD NOTE",null,null,null,"1 / 1"]
[null,"Exporter",null,null,1,"Customs reference/status",null,null,2]
[null,"Huntsman Holland BV St.Mihiel"]
[null,"BP . 19 - ZI de HAN-sur-Meuse",null,null,null,"Booking number",null,"Exporter's reference",4]
[null,"55300 Saint Mihiel"]
[null,{"$f":"UPPER(\"france\")","v":"FRANCE"},null,null,null,null,null,"Forwarder's reference",5]
[]
[null,null,null,null,6,"DSHA Notification given by :",null,null,"6A"]
[null,"INFINEUM France S.N.C",null,null,null,"Shipper","Cargo agent","Transport operator","Shipping line"]
[null,"c/o Compagnie Pétrochimique de Berre"]
[null,"Chemin Départemental 54"]
[null,"Usine Chimique de Berre",null,null,null,"(in accordance with DSHA Regulations)"]
[null,"13130 Berre L'Etang - France"]
[]
[null,"Freight forwarder",null,null,7,"International carrier",null,null,8]
[]
[null,null,null,null,null,"For use of receiving authorithy only"]
[]
[null,"Other UK transport details (eg. ICD, terminal, vehicle bkg. Ref. receiving dates )",null,null,9]
[]
[null,"Vessel/flight no. And date",null,"Port/airport of loading",10]
[]
[null,"Port/airport of discharge",null,"Destination",11,"TO THE RECEIVING AUTHORITY"]
[null,null,null,"BERRE L'ETANG - France",null,"please receive for shipment the goods described below subject to your published regulations and conditions (including those as to liability)."]
["CONTAINER VEHICLE PACKING CERTIFICATE I hereby declare that the goods described above have been packed loaded into the container/vehicle identified below in accordance with the provisions shown overleaf.    MUST BE COMPLETED AND SIGNED FOR ALL CONTAINER/VEHICLE LOADS BY PERSON RESPONSIBLE FOR PACKING/LOADING","Shipping marks","Number and king of packages; description of goods'",null,12,"Net wt (kg)          13","Gross wt (kg)   13A of goods","Cube (m3) of goods",14]
[null,"SPECIFY: PROPER SHIPPING NAME *, IMO HAZARD CLASS, UN No. Addional Information (if applicable, see overleaf)"]
[null,"01 14 Truck containing"]
[null,null,null,"KG SURFONIC® HSA-118",null,null,null,"0,000"]
[null,"UN 2586, ACIDES ARYLSULFONIQUES LIQUIDES, (ALKYLBENZENE SULPHONIC ACID), 8, III, ( E )"]
[]
[null,"Prior delivery, carriers has to be approved. Please contact Emmanuel Debono. Emmanuel.debono@lyondellbasell.com Phone:                       + 33 4 4274 5586 delivery at 08.00 / The carrier must provide in advance the name of the driver that will deliver the product. Driver should have in hands a safety data sheet and a copy of the safety protocol. Only single Compartment road tank allowed, equipped with handrails and DN80 connections. Use of FL vehicles is required. Only ground operated trucks accepted with vent line. Minimum unloading temperature, 40°C "]
[]
[]
[]
[]
[]
[null,"* PROPER SHIPPING NAME - TRADE NAMES ALONE ARE UNACCEPTABLE"]
["Name of compagny",null,15,"DANGEROUS GOODS DECLARATION",null,null,"Total gross weight of goods","Total cube of goods"]
["HHBV St Mihiel bulk",null,null,"I hereby declare that the contents are fully and accurately described above by the proper shipping name(s), that the shipment is packaged in such a manner as to withstand the ordinary risks of handling and transport by sea, having regard to the properties of the goods to be carried, and that the goods are classified, marked and labelled, and are in all respects in accordance with applicable international and national governmental regulations, I further declare that, if appropriate, the goods are classified, packaged and marked to comply with the requirements of the European Agreement concerning the International Carriage of Dangerous Goods by Road (ADR) and of Annex 1 (RID) to the Iniform Rules concerning the Contract for International Carriage of Goods by Rail (CIM) or special arrangements made between the contracting parties to these Agreements.The shipper must complete and sign BOX 17."]
["Name/status of declarant",null,"Saint Mihiel"]
["Place and date",null,{"$f":"TODAY()","v":"2019-10-23"}]
["Signature of declarant"]
[]
[null,null,null,null,null,null,null,"0,000"]
[]
["PREFIX and container/trailer numbers",null,"Seal number(s)","16A","Container/trailer size(s) and type(s)",null,"Tare wt(kg) as marked on CSC plate","Total of boxes 13A and 16C"]
[]
[null,16,null,null,null,"16B","16C",null,"16D"]
["DOCK/TERMINAL RECEIPT RECEIVING AUTHORITY REMARKS",null,"Received the above number of packages/containers/trailers in good order and condition unless stated hereon",null,null,"Name and telephone no. Of shipper preparing this note"]
[]
["Haulier's name"]
["Vehicle reg. No"]
[]
["DRIVER'S SIGNATURE",null,"SIGNATURE AND DATE",null,null,"Signature of declarant"]
[]
["890 Non-completion of any boxes is a subject for resolution by the contracting parties",null,null,null,null,null,"© SITPRO Licensee NO. 000."]
[]
[null,"ADDITIONAL INFORMATION - Box 12 Number and kind of packages; description of goods"]
[null,"The following information must also appear in association with the Proper Shipping Name, IMOP Class/Division and UN Number :"]
[null,"(a)","Packing Group - where assigned"]
[null,"(b)","The words 'MARINE POLLUTANT' - for substances so designed in IMDG Code."]
[null,"(c)","The minimum closed cup (cc) flashpoint in C - if 61C or less."]
[null,"(d)","Subsidiary hazards not communicated in the Proper Shipping Name ."]
[null,"Additional information is required for :"]
[null,"(e)","Substances and articles in Classes 1 and 2 ."]
[null,"(f)","Certain substances in Classes 4.1 and 5.2."]
[null,"(g)","Infectious substances (Class 6.2)."]
[null,"(h)","Radioactive materials (Class 7)"]
[null,"(i)","Empty packagings/tanks containing residues."]
[null,"(j)","Waste dangerous goods."]
[null,"(k)","Dangerous goods consigned as Limited Quantities."]
[null,"(l)","Dangerous goods requiring a weathering certificate."]
[]
[]
[null,"CONTAINER/VEHICLE PACKING CERTIFICATE ( see box 15 overleaf)"]
[null,"THE SIGNATURE GIVEN OVERLEAF IN BOX 15 MUST BE THAT OF THE PERSON CONTROLLING"]
[null,"THE CONTAINER/VEHICLE OPERATION"]
[null,"It is certified that :"]
[null,"1.","The container/vehicle was clean, dry and apparently fit to receive the goods."]
[null,"2.","If the consignments include goods of class1 , other than division 1.4, the container is structurally servicable in conformity with section 12 of the "]
[null,null,"introduction to Class 1 of the IMDG Code."]
[null,"3.","No incompatible goods have been packed into the container/vehicle unless specially authorised by the Competent Authority ;"]
[null,"4.","All packages have been externally inspected for damage and only sound packages packed;"]
[null,"5.","Drums have been stowed in an upright position, unless otherwise authorised by the Competent Authority."]
[null,"6.","All packages have been properly packed and secured in the container/vehicle."]
[null,"7.","When materials are transported in bulk packaging the cargo has been evenly distributed in the container/vehicle."]
[null,"8.","The packages and the container/vehicle have been properly marked, labelled and placarted. Any irrevelant marks, labels and placards have been"]
[null,null,"removed;"]
[null,"9.","When solid Carbon Dioxide (CO2 - dry ice) is used for cooling purposes, the vehicle or freight container is externally marked or labelled in a "]
[null,null,"conspicuous place, e.g. at the door end, with the words:"]
[null,null,"DANGEROUS CO2 - GAS (DRY ICE) INSIDE,"]
[null,null,"VENTILATE THOROUGHLY BEFORE ENTERING;"]
[null,"10.","When this Dangerous Goods Note is used as a container/vehicle packing certificate only, not a combined document, a Dangerous Goods "]
[null,null,"Declaration signed by the shipper or supplier has been issued/received to cover each dangerous goods consignment packed in the container;"]
[]
[null,"Note/ The container packing certificate is not required for thanks."]
[]
[]
[null,"\"Refer to the IMDG Code and SITPRO/FTA Completion Guide for further details\""]

{"sheet":"BL HSA118 ENI","index":22,"n_rows":48,"n_cols":9,"rows_kept":48,"cut":false,"hidden":false,"merged":[[0,4,0,6],[0,7,0,8],[1,4,1,6],[1,7,1,8],[6,1,6,2],[6,4,6,5],[6,7,6,8],[7,1,7,2],[7,4,7,5],[7,7,7,8],[9,1,9,2],[13,1,13,3],[47,1,47,8],[14,1,14,3],[18,7,18,8],[21,7,21,8],[45,1,45,8],[46,1,46,8]]}
[null,"Huntsman Holland B.V.",null,null,"HUNTSMAN",null,null,{"$f":"TODAY()","v":"2019-10-23"}]
[null,"Merseyweg 10",null,null,"Enriching lives through Innovation",null,null,"Delivery Note"]
[null,"P.O. Box 1020"]
[null,"3180 AA Rozenburg"]
[null,"Netherlands"]
[]
[null,"Delivery Number",null,"Hss Delivery","Customer Ref.Number",null,"Loading Date","Delivery Date"]
[]
[]
[null,"Consignee",null,null,"Carrier"]
[null,null,null,null,null,"XPO KEY PL EUROPE"]
[null,"ENI SPA DIV.REFINING & MARKETING"]
[null,"VIA BRUNO BUOZZI 3"]
[null,"10070 ROBASSOMERO (TO)"]
[null,"ITALY"]
[]
[]
[null,"Terms of Delivery",null,null,null,"Vehicle Type Number"]
[null,"DDP",null,null,null,"ROADTANKER"]
[null,"ROBASSOMERO"]
[]
[null,"Material Description",null,null,null,null,"Quantity","Net weight"]
[]
[null,"304943 SURFONIC HSA-118",null,null,null,null,"BULK",null,"KG"]
[null,"UN 2586 , ARYLSULPHONIC ACIDS LIQUID , "]
[null,"(ALKYLBENZENE SULPHONIC ACID) , 8 , III ,"]
[null,"UN 2586 , ACIDES ARYLSULPHONIQUES LIQUIDES ,"]
[null,"SULPHONIC ACID , 8, III"]
[]
[]
[]
[]
[]
[]
[]
[]
[]
[]
[]
[]
[]
[]
[]
[]
[]
[null,"Huntman in Holland is part of the legal entity Huntsman Holland B.V. , a subsidiary company of"]
[null,"Huntsman Investments ( Netherlands ) B.V."]
[null,"Registered with the Rotterdam Chamber of Commerce under No. 24070891 and statutory domiciled at Rotterdam."]

{"sheet":"HSA118 ENI","index":23,"n_rows":8,"n_cols":10,"rows_kept":8,"cut":false,"hidden":false,"merged":[]}
[]
[null,"date chargement","date livraison","HSS Delivery","Delivery Innospec","Eni ROBASSOMERO Ref","citerne","Transporteur","Seals Number","Quantité"]
[null,"2018-01-02","2018-01-03",72449062,"70015254","550","BW705NF","XPOLOGISTICS","543617-18-19-20",25600]
[null,"2018-10-10","2018-10-12",72598181,null,"5500012640"]
[null,"2018-10-17","2018-10-19",72598183,"70026764","5500012640","BY038MZ"]
[null,"2018-11-19","2018-11-21",72515006,"70028099","5500012640","BW635ND"]
[null,"2018-11-20","2018-11-22",72615007,"70028112","5500012640","BW647VJ"]
[null,"2018-11-21","2018-11-23",72615008,"70028114","5500012640","EF128XY","XPO LOGISTICS","5413404/3431/3422/3401/3413",20900]

{"sheet":"ZDGN HSA118 ENI","index":24,"n_rows":99,"n_cols":9,"rows_kept":99,"cut":false,"hidden":false,"merged":[[91,2,91,7],[92,2,92,8],[93,2,93,8],[95,1,95,6],[98,1,98,7],[76,1,76,7],[63,1,63,4],[64,2,64,7],[65,2,65,7],[66,2,66,7],[67,2,67,7],[69,2,69,7],[70,2,70,7],[71,2,71,7],[74,1,74,7],[75,1,75,7],[68,2,68,7],[86,2,86,8],[88,2,88,8],[89,2,89,7],[90,2,90,7],[78,2,78,7],[79,2,79,8],[80,2,80,7],[81,2,81,7],[82,2,82,7],[83,2,83,7],[84,2,84,7],[85,2,85,8],[62,2,62,7],[52,1,52,2],[53,0,53,1],[53,2,53,3],[53,5,53,6],[55,0,55,3],[55,6,55,7],[57,1,57,7],[58,1,58,7],[59,2,59,7],[60,2,60,7],[61,2,61,7],[51,0,51,1],[41,0,41,1],[43,7,43,8],[45,0,45,1],[45,4,45,5],[45,6,46,6],[45,7,46,7],[46,0,46,1],[46,2,47,3],[48,0,49,1],[48,2,48,4],[48,5,48,7],[50,0,50,1],[50,2,50,3],[32,1,32,4],[37,0,37,1],[37,3,37,5],[37,6,38,6],[38,0,38,1],[38,3,44,5],[39,0,39,1],[40,0,40,1],[3,1,3,2],[3,5,3,6],[23,3,23,4],[23,5,23,8],[24,0,36,0],[24,2,24,3],[24,6,25,6],[24,7,25,7],[25,1,25,4],[26,1,26,2],[27,3,27,4],[27,7,27,8],[28,1,29,4],[36,1,36,4],[30,1,30,4],[31,1,31,3],[22,5,22,6],[4,1,4,2],[4,7,4,8],[7,5,7,6],[10,1,10,3],[11,1,11,3],[11,5,11,6],[15,1,15,2],[15,5,15,6],[16,1,16,2],[16,5,16,6],[20,1,20,2],[0,1,0,2],[0,3,0,6],[1,5,1,6],[2,1,2,2],[2,7,2,8]]}
[null,"DANGEROUS GOODS DECLARATION, SHIPPING NOTE & CONTAINER/VEHICULE PACKING CERTIFICATE © SITPRO 1995",null,"           DANGEROUS GOOD NOTE",null,null,null,"1 / 1"]
[null,"Exporter",null,null,1,"Customs reference/status",null,null,2]
[null,"Huntsman Holland BV St.Mihiel"]
[null,"BP . 19 - ZI de HAN-sur-Meuse",null,null,null,"Booking number",null,"Exporter's reference",4]
[null,"55300 Saint Mihiel"]
[null,{"$f":"UPPER(\"france\")","v":"FRANCE"},null,null,null,null,null,"Forwarder's reference",5]
[]
[null,null,null,null,6,"DSHA Notification given by :",null,null,"6A"]
[null,"ENI SPA DIV.REFINING & MARKETING",null,null,null,"Shipper","Cargo agent","Transport operator","Shipping line"]
[null,"VIA BRUNO BUOZZI 3"]
[null,"10070 ROBASSOMERO (TO)"]
[null,"ITALY",null,null,null,"(in accordance with DSHA Regulations)"]
[]
[]
[null,"Freight forwarder",null,null,7,"International carrier",null,null,8]
[]
[null,null,null,null,null,"For use of receiving authorithy only"]
[]
[null,"Other UK transport details (eg. ICD, terminal, vehicle bkg. Ref. receiving dates )",null,null,9]
[]
[null,"Vessel/flight no. And date",null,"Port/airport of loading",10]
[]
[null,"Port/airport of discharge",null,"Destination",11,"TO THE RECEIVING AUTHORITY"]
[null,null,null,"ROBASSOMERO",null,"please receive for shipment the goods described below subject to your published regulations and conditions (including those as to liability)."]
["CONTAINER VEHICLE PACKING CERTIFICATE I hereby declare that the goods described above have been packed loaded into the container/vehicle identified below in accordance with the provisions shown overleaf.    MUST BE COMPLETED AND SIGNED FOR ALL CONTAINER/VEHICLE LOADS BY PERSON RESPONSIBLE FOR PACKING/LOADING","Shipping marks","Number and king of packages; description of goods'",null,12,"Net wt (kg)          13","Gross wt (kg)   13A of goods","Cube (m3) of goods",14]
[null,"SPECIFY: PROPER SHIPPING NAME *, IMO HAZARD CLASS, UN No. Addional Information (if applicable, see overleaf)"]
[null,"01 14 Truck containing"]
[null,null,null,"KG SURFONIC® HSA-118",null,null,null,"0,000"]
[null,"UN 2586, ACIDES ARYLSULFONIQUES LIQUIDES, (ALKYLBENZENE SULPHONIC ACID), 8, III, ( E )"]
[]
[null,"Huntsman Emergency Response 24 Hour Number : "]
[null,"+32 3575 1234"]
[null,"for transport and distribution incidents only"]
[]
[]
[]
[null,"* PROPER SHIPPING NAME - TRADE NAMES ALONE ARE UNACCEPTABLE"]
["Name of compagny",null,15,"DANGEROUS GOODS DECLARATION",null,null,"Total gross weight of goods","Total cube of goods"]
["HHBV St Mihiel bulk",null,null,"I hereby declare that the contents are fully and accurately described above by the proper shipping name(s), that the shipment is packaged in such a manner as to withstand the ordinary risks of handling and transport by sea, having regard to the properties of the goods to be carried, and that the goods are classified, marked and labelled, and are in all respects in accordance with applicable international and national governmental regulations, I further declare that, if appropriate, the goods are classified, packaged and marked to comply with the requirements of the European Agreement concerning the International Carriage of Dangerous Goods by Road (ADR) and of Annex 1 (RID) to the Iniform Rules concerning the Contract for International Carriage of Goods by Rail (CIM) or special arrangements made between the contracting parties to these Agreements.The shipper must complete and sign BOX 17."]
["Name/status of declarant",null,"Saint Mihiel"]
["Place and date",null,{"$f":"TODAY()","v":"2019-10-23"}]
["Signature of declarant"]
[]
[null,null,null,null,null,null,null,"0,000"]
[]
["PREFIX and container/trailer numbers",null,"Seal number(s)","16A","Container/trailer size(s) and type(s)",null,"Tare wt(kg) as marked on CSC plate","Total of boxes 13A and 16C"]
[]
[null,16,null,null,null,"16B","16C",null,"16D"]
["DOCK/TERMINAL RECEIPT RECEIVING AUTHORITY REMARKS",null,"Received the above number of packages/containers/trailers in good order and condition unless stated hereon",null,null,"Name and telephone no. Of shipper preparing this note"]
[]
["Haulier's name"]
["Vehicle reg. No"]
[]
["DRIVER'S SIGNATURE",null,"SIGNATURE AND DATE",null,null,"Signature of declarant"]
[]
["890 Non-completion of any boxes is a subject for resolution by the contracting parties",null,null,null,null,null,"© SITPRO Licensee NO. 000."]
[]
[null,"ADDITIONAL INFORMATION - Box 12 Number and kind of packages; description of goods"]
[null,"The following information must also appear in association with the Proper Shipping Name, IMOP Class/Division and UN Number :"]
[null,"(a)","Packing Group - where assigned"]
[null,"(b)","The words 'MARINE POLLUTANT' - for substances so designed in IMDG Code."]
[null,"(c)","The minimum closed cup (cc) flashpoint in C - if 61C or less."]
[null,"(d)","Subsidiary hazards not communicated in the Proper Shipping Name ."]
[null,"Additional information is required for :"]
[null,"(e)","Substances and articles in Classes 1 and 2 ."]
[null,"(f)","Certain substances in Classes 4.1 and 5.2."]
[null,"(g)","Infectious substances (Class 6.2)."]
[null,"(h)","Radioactive materials (Class 7)"]
[null,"(i)","Empty packagings/tanks containing residues."]
[null,"(j)","Waste dangerous goods."]
[null,"(k)","Dangerous goods consigned as Limited Quantities."]
[null,"(l)","Dangerous goods requiring a weathering certificate."]
[]
[]
[null,"CONTAINER/VEHICLE PACKING CERTIFICATE ( see box 15 overleaf)"]
[null,"THE SIGNATURE GIVEN OVERLEAF IN BOX 15 MUST BE THAT OF THE PERSON CONTROLLING"]
[null,"THE CONTAINER/VEHICLE OPERATION"]
[null,"It is certified that :"]
[null,"1.","The container/vehicle was clean, dry and apparently fit to receive the goods."]
[null,"2.","If the consignments include goods of class1 , other than division 1.4, the container is structurally servicable in conformity with section 12 of the "]
[null,null,"introduction to Class 1 of the IMDG Code."]
[null,"3.","No incompatible goods have been packed into the container/vehicle unless specially authorised by the Competent Authority ;"]
[null,"4.","All packages have been externally inspected for damage and only sound packages packed;"]
[null,"5.","Drums have been stowed in an upright position, unless otherwise authorised by the Competent Authority."]
[null,"6.","All packages have been properly packed and secured in the container/vehicle."]
[null,"7.","When materials are transported in bulk packaging the cargo has been evenly distributed in the container/vehicle."]
[null,"8.","The packages and the container/vehicle have been properly marked, labelled and placarted. Any irrevelant marks, labels and placards have been"]
[null,null,"removed;"]
[null,"9.","When solid Carbon Dioxide (CO2 - dry ice) is used for cooling purposes, the vehicle or freight container is externally marked or labelled in a "]
[null,null,"conspicuous place, e.g. at the door end, with the words:"]
[null,null,"DANGEROUS CO2 - GAS (DRY ICE) INSIDE,"]
[null,null,"VENTILATE THOROUGHLY BEFORE ENTERING;"]
[null,"10.","When this Dangerous Goods Note is used as a container/vehicle packing certificate only, not a combined document, a Dangerous Goods "]
[null,null,"Declaration signed by the shipper or supplier has been issued/received to cover each dangerous goods consignment packed in the container;"]
[]
[null,"Note/ The container packing certificate is not required for thanks."]
[]
[]
[null,"\"Refer to the IMDG Code and SITPRO/FTA Completion Guide for further details\""]

{"sheet":"BL AS305BD CHEVRON","index":25,"n_rows":48,"n_cols":9,"rows_kept":48,"cut":false,"hidden":false,"merged":[[14,1,14,3],[0,4,0,6],[0,7,0,8],[1,4,1,6],[1,7,1,8],[6,1,6,2],[6,4,6,5],[6,7,6,8],[7,1,7,2],[7,4,7,5],[7,7,7,8],[9,1,9,2],[13,1,13,3],[18,7,18,8],[21,7,21,8],[45,1,45,8],[46,1,46,8],[47,1,47,8]]}
[null,"Huntsman Holland B.V.",null,null,"HUNTSMAN",null,null,{"$f":"TODAY()","v":"2019-10-23"}]
[null,"Merseyweg 10",null,null,"Enriching lives through Innovation",null,null,"Delivery Note"]
[null,"P.O. Box 1020"]
[null,"3180 AA Rozenburg"]
[null,"Netherlands"]
[]
[null,"Delivery Number",null,"Hss Delivery","Customer Ref.Number",null,"Loading Date","Delivery Date"]
[]
[]
[null,"Consignee",null,null,"Carrier"]
[null,null,null,null,null,"XPO KEY PL EUROPE"]
[null,"CHEVRON ORONITE SAS"]
[null,"ROUTE DU PONT VIII"]
[null,"7014X"]
[null,"76700 GONFREVILLE L'ORCHER"]
[null,"France"]
[]
[null,"Terms of Delivery",null,null,null,"Vehicle Type Number"]
[null,"DDP",null,null,null,"ROADTANKER"]
[null,"GONFREVILLE L'ORCHER"]
[]
[null,"Material Description",null,null,null,null,"Quantity","Net weight"]
[]
[null,"252623 NANSA AS 305 BD",null,null,null,null,"BULK",null,"KG"]
[null,"UN 2586 , ACIDES ARYLSULFONIQUES LIQUIDES, 8, III"]
[null,"Dangereux pour l'environnement"]
[null,3000000514]
[null,"RM10095"]
[]
[]
[]
[]
[]
[]
[]
[]
[]
[]
[]
[]
[]
[]
[]
[]
[]
[null,"Huntman in Holland is part of the legal entity Huntsman Holland B.V. , a subsidiary company of"]
[null,"Huntsman Investments ( Netherlands ) B.V."]
[null,"Registered with the Rotterdam Chamber of Commerce under No. 24070891 and statutory domiciled at Rotterdam."]

{"sheet":"AS305BD CHEVRON","index":26,"n_rows":6,"n_cols":10,"rows_kept":6,"cut":false,"hidden":false,"merged":[]}
[]
[null,"date chargement","date livraison","HSS Delivery","Delivery Innospec","CHEVRON  Ref","citerne","Transporteur","Seals Number","Quantité"]
[null,"2018-01-02","2018-01-03",72449062,"70015254","450","TASU","XPOLOGISTICS","543617-18-19-20",25600]
[null,"2018-09-15",null,725883069,"70025363","4500226158/00020","BY701KZ"]
[null,"2018-09-15","2018-09-18",72583071,"70025429","4500226158/00040","BA507NW"]
[null,"2018-09-16",null,72583072,"70025442","4500226158/00050","BX028CD"]

{"sheet":"ZDGN AS305BD CHEVRON","index":27,"n_rows":0,"n_cols":0,"rows_kept":0,"cut":false,"hidden":false,"merged":[]}

{"sheet":"BL AS305BD ALKION","index":28,"n_rows":48,"n_cols":9,"rows_kept":48,"cut":false,"hidden":false,"merged":[[18,7,18,8],[21,7,21,8],[45,1,45,8],[46,1,46,8],[47,1,47,8],[26,4,26,5],[14,1,14,3],[0,4,0,6],[0,7,0,8],[1,4,1,6],[1,7,1,8],[6,1,6,2],[6,4,6,5],[6,7,6,8],[7,1,7,2],[7,4,7,5],[7,7,7,8],[9,1,9,2],[13,1,13,3]]}
[null,"Huntsman Holland B.V.",null,null,"HUNTSMAN",null,null,{"$f":"TODAY()","v":"2019-10-23"}]
[null,"Merseyweg 10",null,null,"Enriching lives through Innovation",null,null,"Delivery Note"]
[null,"P.O. Box 1020"]
[null,"3180 AA Rozenburg"]
[null,"Netherlands"]
[]
[null,"Delivery Number",null,"Hss Delivery","Customer Ref.Number",null,"Loading Date","Delivery Date"]
[]
[]
[null,"Consignee",null,null,"Carrier"]
[null,null,null,null,null,"XPO KEY PL EUROPE"]
[null,"ALKION TERMINAL 2"]
[null,"ROUTE DE LA PLAINE"]
[null,"76700 GONFREVILLE L'ORCHER"]
[null,"France"]
[]
[]
[null,"Terms of Delivery",null,null,null,"Vehicle Type Number"]
[null,"DDP",null,null,null,"ROADTANKER"]
[null,"GONFREVILLE L'ORCHER"]
[]
[null,"Material Description",null,null,null,null,"Quantity","Net weight"]
[]
[null,"252623 NANSA AS 305 BD",null,null,null,null,"BULK",null,"KG"]
[null,"UN 2586 , ACIDES ARYLSULFONIQUES LIQUIDES, 8, III"]
[null,"Dangereux pour l'environnement"]
[null,3000000514]
[null,"RM10095"]
[]
[]
[]
[]
[]
[]
[]
[]
[]
[]
[]
[]
[]
[]
[]
[]
[]
[null,"Huntman in Holland is part of the legal entity Huntsman Holland B.V. , a subsidiary company of"]
[null,"Huntsman Investments ( Netherlands ) B.V."]
[null,"Registered with the Rotterdam Chamber of Commerce under No. 24070891 and statutory domiciled at Rotterdam."]

{"sheet":"AS305BD ALKION","index":29,"n_rows":6,"n_cols":10,"rows_kept":6,"cut":false,"hidden":false,"merged":[]}
[]
[null,"date chargement","date livraison","HSS Delivery","Delivery Innospec","ALKION  Ref","citerne","Transporteur","Seals Number","Quantité"]
[null,"2018-01-02","2018-01-03",72449062,"70015254","450","INGU","XPOLOGISTICS","543617-18-19-20",25600]
[null,"2018-09-15","2018-09-17",72583068,"70025362","4500226158","BX158NB CUVE 2"]
[null,"2018-09-17","2018-09-18",72583074,"70025511","4500226158","EF128XY CUVE 2"]
[null,"2018-09-16",null,72583078,"70025535","4500226158/00070","BW692NB"]

{"sheet":"ZDGN AS305BD ALKION","index":30,"n_rows":99,"n_cols":9,"rows_kept":99,"cut":false,"hidden":false,"merged":[[0,1,0,2],[0,3,0,6],[1,5,1,6],[2,1,2,2],[2,7,2,8],[22,5,22,6],[4,1,4,2],[4,7,4,8],[7,5,7,6],[10,1,10,3],[11,1,11,3],[11,5,11,6],[15,1,15,2],[15,5,15,6],[16,1,16,2],[16,5,16,6],[20,1,20,2],[3,1,3,2],[3,5,3,6],[23,3,23,4],[23,5,23,8],[24,0,36,0],[24,2,24,3],[24,6,25,6],[24,7,25,7],[25,1,25,4],[26,1,26,2],[27,3,27,4],[27,7,27,8],[28,1,29,4],[30,1,30,4],[31,1,31,3],[32,1,32,4],[36,1,36,4],[37,6,38,6],[38,0,38,1],[38,3,44,5],[39,0,39,1],[40,0,40,1],[41,0,41,1],[37,0,37,1],[37,3,37,5],[51,0,51,1],[43,7,43,8],[45,0,45,1],[45,4,45,5],[45,6,46,6],[45,7,46,7],[46,0,46,1],[46,2,47,3],[48,0,49,1],[48,2,48,4],[48,5,48,7],[50,0,50,1],[50,2,50,3],[62,2,62,7],[52,1,52,2],[53,0,53,1],[53,2,53,3],[53,5,53,6],[55,0,55,3],[55,6,55,7],[57,1,57,7],[58,1,58,7],[59,2,59,7],[60,2,60,7],[61,2,61,7],[76,1,76,7],[63,1,63,4],[64,2,64,7],[65,2,65,7],[66,2,66,7],[67,2,67,7],[68,2,68,7],[69,2,69,7],[70,2,70,7],[71,2,71,7],[74,1,74,7],[75,1,75,7],[90,2,90,7],[78,2,78,7],[79,2,79,8],[80,2,80,7],[81,2,81,7],[82,2,82,7],[83,2,83,7],[84,2,84,7],[85,2,85,8],[86,2,86,8],[88,2,88,8],[89,2,89,7],[91,2,91,7],[92,2,92,8],[93,2,93,8],[95,1,95,6],[98,1,98,7]]}
[null,"DANGEROUS GOODS DECLARATION, SHIPPING NOTE & CONTAINER/VEHICULE PACKING CERTIFICATE © SITPRO 1995",null,"           DANGEROUS GOOD NOTE",null,null,null,"1 / 1"]
[null,"Exporter",null,null,1,"Customs reference/status",null,null,2]
[null,"Huntsman Holland BV St.Mihiel",null,null,null,null,null,70015254]
[null,"BP . 19 - ZI de HAN-sur-Meuse",null,null,null,"Booking number",null,"Exporter's reference",4]
[null,"55300 Saint Mihiel",null,null,null,null,null,72449062]
[null,{"$f":"UPPER(\"france\")","v":"FRANCE"},null,null,null,null,null,"Forwarder's reference",5]
[]
[null,null,null,null,6,"DSHA Notification given by :",null,null,"6A"]
[null,"ALKION TERMINAL 2",null,null,null,"Shipper","Cargo agent","Transport operator","Shipping line"]
[null,"ROUTE DE LA PLAINE"]
[null,"76700 GONFREVILLE L'ORCHER"]
[null,"France",null,null,null,"(in accordance with DSHA Regulations)"]
[]
[]
[null,"Freight forwarder",null,null,7,"International carrier",null,null,8]
[null,null,null,null,null,"XPOLOGISTICS"]
[null,"XPOLOGISTICS",null,null,null,"For use of receiving authorithy only"]
[]
[null,"Other UK transport details (eg. ICD, terminal, vehicle bkg. Ref. receiving dates )",null,null,9]
[]
[null,"Vessel/flight no. And date",null,"Port/airport of loading",10]
[]
[null,"Port/airport of discharge",null,"Destination",11,"TO THE RECEIVING AUTHORITY"]
[null,null,null,"GONFREVILLE L'ORCHER",null,"please receive for shipment the goods described below subject to your published regulations and conditions (including those as to liability)."]
["CONTAINER VEHICLE PACKING CERTIFICATE I hereby declare that the goods described above have been packed loaded into the container/vehicle identified below in accordance with the provisions shown overleaf.    MUST BE COMPLETED AND SIGNED FOR ALL CONTAINER/VEHICLE LOADS BY PERSON RESPONSIBLE FOR PACKING/LOADING","Shipping marks","Number and king of packages; description of goods'",null,12,"Net wt (kg)          13","Gross wt (kg)   13A of goods","Cube (m3) of goods",14]
[null,"SPECIFY: PROPER SHIPPING NAME *, IMO HAZARD CLASS, UN No. Addional Information (if applicable, see overleaf)"]
[null,"01 14 Truck containing"]
[null,null,25600,"KG SURFONIC® AS-305BD",null,25600,25600,"0,000"]
[null,"UN 2586, ACIDES ARYLSULFONIQUES LIQUIDES, 8, III, ( E ) ENVIRONMENTALLY HAZARDOUS"]
[]
[null,"Huntsman Emergency Response 24 Hour Number : "]
[null,"+32 3575 1234"]
[null,"for transport and distribution incidents only"]
[]
[]
[]
[null,"* PROPER SHIPPING NAME - TRADE NAMES ALONE ARE UNACCEPTABLE"]
["Name of compagny",null,15,"DANGEROUS GOODS DECLARATION",null,null,"Total gross weight of goods","Total cube of goods"]
["HHBV St Mihiel bulk",null,null,"I hereby declare that the contents are fully and accurately described above by the proper shipping name(s), that the shipment is packaged in such a manner as to withstand the ordinary risks of handling and transport by sea, having regard to the properties of the goods to be carried, and that the goods are classified, marked and labelled, and are in all respects in accordance with applicable international and national governmental regulations, I further declare that, if appropriate, the goods are classified, packaged and marked to comply with the requirements of the European Agreement concerning the International Carriage of Dangerous Goods by Road (ADR) and of Annex 1 (RID) to the Iniform Rules concerning the Contract for International Carriage of Goods by Rail (CIM) or special arrangements made between the contracting parties to these Agreements.The shipper must complete and sign BOX 17."]
["Name/status of declarant",null,"Saint Mihiel"]
["Place and date",null,{"$f":"TODAY()","v":"2019-10-23"}]
["Signature of declarant"]
[]
[null,null,null,null,null,null,25600,"0,000"]
[]
["PREFIX and container/trailer numbers",null,"Seal number(s)","16A","Container/trailer size(s) and type(s)",null,"Tare wt(kg) as marked on CSC plate","Total of boxes 13A and 16C"]
["INGU",null,"543617-18-19-20"]
[null,16,null,null,null,"16B","16C",null,"16D"]
["DOCK/TERMINAL RECEIPT RECEIVING AUTHORITY REMARKS",null,"Received the above number of packages/containers/trailers in good order and condition unless stated hereon",null,null,"Name and telephone no. Of shipper preparing this note"]
[]
["Haulier's name",null,"XPOLOGISTICS"]
["Vehicle reg. No"]
[null,"INGU"]
["DRIVER'S SIGNATURE",null,"SIGNATURE AND DATE",null,null,"Signature of declarant"]
[]
["890 Non-completion of any boxes is a subject for resolution by the contracting parties",null,null,null,null,null,"© SITPRO Licensee NO. 000."]
[]
[null,"ADDITIONAL INFORMATION - Box 12 Number and kind of packages; description of goods"]
[null,"The following information must also appear in association with the Proper Shipping Name, IMOP Class/Division and UN Number :"]
[null,"(a)","Packing Group - where assigned"]
[null,"(b)","The words 'MARINE POLLUTANT' - for substances so designed in IMDG Code."]
[null,"(c)","The minimum closed cup (cc) flashpoint in C - if 61C or less."]
[null,"(d)","Subsidiary hazards not communicated in the Proper Shipping Name ."]
[null,"Additional information is required for :"]
[null,"(e)","Substances and articles in Classes 1 and 2 ."]
[null,"(f)","Certain substances in Classes 4.1 and 5.2."]
[null,"(g)","Infectious substances (Class 6.2)."]
[null,"(h)","Radioactive materials (Class 7)"]
[null,"(i)","Empty packagings/tanks containing residues."]
[null,"(j)","Waste dangerous goods."]
[null,"(k)","Dangerous goods consigned as Limited Quantities."]
[null,"(l)","Dangerous goods requiring a weathering certificate."]
[]
[]
[null,"CONTAINER/VEHICLE PACKING CERTIFICATE ( see box 15 overleaf)"]
[null,"THE SIGNATURE GIVEN OVERLEAF IN BOX 15 MUST BE THAT OF THE PERSON CONTROLLING"]
[null,"THE CONTAINER/VEHICLE OPERATION"]
[null,"It is certified that :"]
[null,"1.","The container/vehicle was clean, dry and apparently fit to receive the goods."]
[null,"2.","If the consignments include goods of class1 , other than division 1.4, the container is structurally servicable in conformity with section 12 of the "]
[null,null,"introduction to Class 1 of the IMDG Code."]
[null,"3.","No incompatible goods have been packed into the container/vehicle unless specially authorised by the Competent Authority ;"]
[null,"4.","All packages have been externally inspected for damage and only sound packages packed;"]
[null,"5.","Drums have been stowed in an upright position, unless otherwise authorised by the Competent Authority."]
[null,"6.","All packages have been properly packed and secured in the container/vehicle."]
[null,"7.","When materials are transported in bulk packaging the cargo has been evenly distributed in the container/vehicle."]
[null,"8.","The packages and the container/vehicle have been properly marked, labelled and placarted. Any irrevelant marks, labels and placards have been"]
[null,null,"removed;"]
[null,"9.","When solid Carbon Dioxide (CO2 - dry ice) is used for cooling purposes, the vehicle or freight container is externally marked or labelled in a "]
[null,null,"conspicuous place, e.g. at the door end, with the words:"]
[null,null,"DANGEROUS CO2 - GAS (DRY ICE) INSIDE,"]
[null,null,"VENTILATE THOROUGHLY BEFORE ENTERING;"]
[null,"10.","When this Dangerous Goods Note is used as a container/vehicle packing certificate only, not a combined document, a Dangerous Goods "]
[null,null,"Declaration signed by the shipper or supplier has been issued/received to cover each dangerous goods consignment packed in the container;"]
[]
[null,"Note/ The container packing certificate is not required for thanks."]
[]
[]
[null,"\"Refer to the IMDG Code and SITPRO/FTA Completion Guide for further details\""]

{"sheet":"BL HSA118 VISCOL","index":31,"n_rows":48,"n_cols":9,"rows_kept":48,"cut":false,"hidden":false,"merged":[[18,7,18,8],[21,7,21,8],[45,1,45,8],[46,1,46,8],[47,1,47,8],[14,1,14,3],[0,4,0,6],[0,7,0,8],[1,4,1,6],[1,7,1,8],[6,1,6,2],[6,4,6,5],[6,7,6,8],[7,1,7,2],[7,4,7,5],[7,7,7,8],[9,1,9,2],[13,1,13,3]]}
[null,"Huntsman Holland B.V.",null,null,"HUNTSMAN",null,null,{"$f":"TODAY()","v":"2019-10-23"}]
[null,"Merseyweg 10",null,null,"Enriching lives through Innovation",null,null,"Delivery Note"]
[null,"P.O. Box 1020"]
[null,"3180 AA Rozenburg"]
[null,"Netherlands"]
[]
[null,"Delivery Number",null,"Hss Delivery","Customer Ref.Number",null,"Loading Date","Delivery Date"]
[]
[]
[null,"Consignee",null,null,"Carrier"]
[null,null,null,null,null,"XPO KEY PL EUROPE"]
[null,"VISCOL SPA"]
[null,"VIA DELLE PIANE 95"]
[null,"16019 RONCO SCRIVIA"]
[null,"ITALY"]
[]
[]
[null,"Terms of Delivery",null,null,null,"Vehicle Type Number"]
[null,"DDP",null,null,null,"ROADTANKER"]
[null,"RONCO SCRIVIA"]
[]
[null,"Material Description",null,null,null,null,"Quantity","Net weight"]
[]
[null,"304943 SURFONIC HSA 118",null,null,null,null,"BULK",null,"KG"]
[null,"UN 2586 , ARYLSULPHONIC ACIDS LIQUID,"]
[null,"(ALKYLBENZENE SULPHONIC ACID), 8, III,"]
[null,"UN 2586 , ACIDES ARYLSULFONIQUES LIQUIDES,"]
[null,"SULPHONIC ACID), 8, III,"]
[]
[]
[]
[]
[]
[]
[]
[]
[]
[]
[]
[]
[]
[]
[]
[]
[]
[null,"Huntman in Holland is part of the legal entity Huntsman Holland B.V. , a subsidiary company of"]
[null,"Huntsman Investments ( Netherlands ) B.V."]
[null,"Registered with the Rotterdam Chamber of Commerce under No. 24070891 and statutory domiciled at Rotterdam."]

{"sheet":"HSA118 VISCOL","index":32,"n_rows":3,"n_cols":10,"rows_kept":3,"cut":false,"hidden":false,"merged":[]}
[]
[null,"date chargement","date livraison","HSS Delivery","Delivery Innospec","VISCOL  Ref","citerne","Transporteur","Seals Number","Quantité"]
[null,"2018-01-02","2018-01-03",72449062,"70015254","450","BW535NE","XPOLOGISTICS","543617-18-19-20",25600]

{"sheet":"ZDGN HSA118 VISCOL","index":33,"n_rows":0,"n_cols":0,"rows_kept":0,"cut":false,"hidden":false,"merged":[]}